{"text_format":"3","workbook":"xlsx","n_sheets":7,"sheets":["Anforderungen","Kurzanleitung","Anforderungskatalog","Auswertungen nach  Stati","Ausw Dringlich_Wichtig","Ausw StoryPoints","Parametrisierung"],"not_rendered":{"charts":13,"images":1,"defined_names":27,"comments":1,"pivot_tables":1},"read":"whole","date_system":"1900"}

{"sheet":"Anforderungen","index":0,"n_rows":42,"n_cols":5,"rows_kept":42,"merged":[[1,0,1,4],[30,0,30,2],[41,0,41,3],[42,0,42,3],[43,0,43,3],[44,0,44,3],[45,0,45,3],[46,0,46,3],[47,0,47,3],[48,0,48,3],[49,0,49,3],[50,0,50,3]]}
["Projekt XYZ"]
["Im Anforderungskatalog werden sämtliche Bedürfnisse und Anforderungen des Projekts festgehalten, bewertet und priorisiert."]
["Änderungsgeschichte"]
[]
["Version","Datum","Autor","Status","Bemerkungen / Änderungen"]
[{"$nulls":4},"Initiale Version"]
{"$rows_empty":10}
["(ausserhalb des Druckbereiches)"]
["Referenzierte Dokumente (exkl. eigentliche Anforderungsdokumente)"]
[]
["Version","Datum","Autor(en)","Status","Dokument"]
{"$rows_empty":8}
["Freigabe durch den Lenkungs-/Steuerungsausschuss"]
[]
["Name",null,null,"Datum"]
{"$rows_empty":8}
["Verteiler"]
[]
["Name",{"$nulls":3},"Name"]

{"sheet":"Kurzanleitung","index":1,"n_rows":9,"n_cols":2,"rows_kept":9}
[]
[]
[null,"Der Anforderungskatalog verfügt mit Sicherheit über mehr Spalten, als Sie in Ihrem Projekt je benötigen werden. Prüfen Sie für Ihr Projekt, welche Spalten benötigt werden und löschen (oder verbergen) Sie die übrigen."]
[]
[null,"In den Titelzellen der Spalten finden Sie teilweise Kommentare zum Gebrauch der einzelnen Spalten."]
[]
[null,"Die Darstellung (kursiv, gestrichen) der Zellinhalte ist abhängig vom gesetzten Status in der entsprechenden Spalte."]
[]
[null,"Rote Zellen in der ersten Spalten zeigen doppelt vergebene Identifikationen an."]

{"sheet":"Anforderungskatalog","index":2,"n_rows":136,"n_cols":49,"rows_kept":136,"merged":[[0,0,0,8],[0,9,0,14],[0,15,0,18],[0,19,0,30],[0,31,0,35],[0,36,0,39],[0,40,0,45],[0,46,0,48]]}
[{"$f":"\"Anforderungskatalog \" & Projektname","v":"Anforderungskatalog Projekt XYZ"},{"$nulls":8},"Traceability",{"$nulls":5},"Agil",{"$nulls":3},"Priorisierung",{"$nulls":11},"Schätzungen",{"$nulls":4},"Ausschreibung/Lieferant",{"$nulls":3},"Status und Zuweisung",{"$nulls":5},"Management"]
["Anforderungsbeschreibung",{"$nulls":8},"Ursprung",{"$nulls":9},"Evaluation",{"$nulls":20},"Status und Zuweisung",{"$nulls":5},"Kommentar und Links"]
["ID","Titel","Anforderungs-Typ","Kategorie/Thema","Kurzbeschreibung","Notizen","Standard","Beschreibungs-Tiefe","Umsetzungs-Art","Eingangs-Datum","Quelle","Initiator Name","Anforderungs Vertreter","Ref. LO","Ref. Ziel","Priorität","Story Points Estimated","Story Points Effektiv","Iteration","Erwarteter Nutzen","Auswirkung Nicht-Real.","Komplexität","Unsicherheits-Faktor","Risiko","Aufwand-Kategorie","Muss/Kann","Priorität fachl.","Priorität techn.","geplant für Release","Dringlichkeit","Wichtigkeit","Schätzung 1","Schätzung 2","Schätzung netto","Reserve","Schätzung brutto","Hinweise für Lieferanten","Gewichtung","Erfüllung","Bemerkungen","Status","Status\nAnzeige","FG %","Begründung","Referenz ","Verantwortlich","Kommentar","offene Punkte","Dokumentenlink (Quelle)"]
["1","Mitgliederverwaltung","T: Grobanforderung (Thema/Epic)","Mitglieder","Mitglieder müssen verwaltet, gesucht werden können, sowohl inhouse wie auch über das Internet",null,"1-nicht vorhanden",null,"NA: offen",{"$nulls":4},"2.8: SW Mitgliederverwaltung","Ziel 3",3,3,4,1,"1-sehr hoch",null,"1-sehr hoch",null,null,"1-sehr hoch",null,"4-tief",null,null,"1-hoch","2-mittel",null,null,{"$f":"IF(SUM(TabAnforderungen[[#This Row],[Schätzung 1]:[Schätzung 2]])=0,0,AVERAGE(TabAnforderungen[[#This Row],[Schätzung 1]:[Schätzung 2]]))","v":{"v":0,"d":"0.0"}},null,{"$f":"SUM(TabAnforderungen[[#This Row],[Schätzung netto]:[Reserve]])","v":{"v":0,"d":"0.0"}},{"$nulls":4},"unvollständig",{"$f":"VLOOKUP(TabAnforderungen[[#This Row],[Status]],TabStati[],2,FALSE)","v":1},{"v":0.5,"d":"50%"}]
["2.1","Leihgüter verwalten","FA: Funktionale Anforderung","Leihgüter","Als Bibliothekar will ich Leihgüter erfassen, mutieren und löschen können",null,"2-grössere Anp.","as is","SW: Softwaremässig",{"$nulls":6},2,5,null,2,"1-sehr hoch",null,"2-hoch",null,null,"2-hoch",null,"2-hoch",null,null,"2-mittel","3-gering",null,null,{"$f":"IF(SUM(TabAnforderungen[[#This Row],[Schätzung 1]:[Schätzung 2]])=0,0,AVERAGE(TabAnforderungen[[#This Row],[Schätzung 1]:[Schätzung 2]]))","v":{"v":0,"d":"0.0"}},null,{"$f":"SUM(TabAnforderungen[[#This Row],[Schätzung netto]:[Reserve]])","v":{"v":0,"d":"0.0"}},{"$nulls":4},"akzeptiert",{"$f":"VLOOKUP(TabAnforderungen[[#This Row],[Status]],TabStati[],2,FALSE)","v":1}]
["2.2","Leihgüter suchen","FA: Funktionale Anforderung","Leihgüter","Suche nach Leihgüter über Typ, Titel, Author, Klassifikation, etc.",null,null,"mittel","ORG: Organisatorisch",{"$nulls":6},1,2,null,1,"1-sehr hoch",null,"3-mittel",null,null,"3-mittel",null,"3-mittel",null,null,"1-hoch","1-hoch",{"v":1,"d":"1.0"},{"v":2,"d":"2.0"},{"$f":"IF(SUM(TabAnforderungen[[#This Row],[Schätzung 1]:[Schätzung 2]])=0,0,AVERAGE(TabAnforderungen[[#This Row],[Schätzung 1]:[Schätzung 2]]))","v":1.5},{"v":1,"d":"1.0"},{"$f":"SUM(TabAnforderungen[[#This Row],[Schätzung netto]:[Reserve]])","v":2.5},{"$nulls":4},"beantragt",{"$f":"VLOOKUP(TabAnforderungen[[#This Row],[Status]],TabStati[],2,FALSE)","v":1}]
["2.3","Leihgüter inventieren","T: Grobanforderung (Thema/Epic)","Leihgüter","Möglichkeit den effektiven Bestand gegenüber den in der Sofware festgehaltenen Bestand abzugleichen; inkl. der Möglichkeit Fehlmengen auszubuchen",{"$nulls":3},"T: Technisch",{"$nulls":6},5,3,null,2,"1-sehr hoch",null,"4-tief",null,null,"4-tief",null,"1-sehr hoch",null,null,"3-gering",{"$nulls":3},{"$f":"IF(SUM(TabAnforderungen[[#This Row],[Schätzung 1]:[Schätzung 2]])=0,0,AVERAGE(TabAnforderungen[[#This Row],[Schätzung 1]:[Schätzung 2]]))","v":{"v":0,"d":"0.0"}},null,{"$f":"SUM(TabAnforderungen[[#This Row],[Schätzung netto]:[Reserve]])","v":{"v":0,"d":"0.0"}},{"$nulls":4},"Lösung spezifiziert",{"$f":"VLOOKUP(TabAnforderungen[[#This Row],[Status]],TabStati[],2,FALSE)","v":1}]
["2.3.1","Anforderung 1",{"$nulls":6},"T: Technisch",{"$nulls":6},4,null,null,1,"1-sehr hoch",null,"4-tief",null,null,"1-sehr hoch",null,"4-tief",null,null,"1-hoch",{"$nulls":3},{"$f":"IF(SUM(TabAnforderungen[[#This Row],[Schätzung 1]:[Schätzung 2]])=0,0,AVERAGE(TabAnforderungen[[#This Row],[Schätzung 1]:[Schätzung 2]]))","v":{"v":0,"d":"0.0"}},null,{"$f":"SUM(TabAnforderungen[[#This Row],[Schätzung netto]:[Reserve]])","v":{"v":0,"d":"0.0"}},{"$nulls":4},"analysiert",{"$f":"VLOOKUP(TabAnforderungen[[#This Row],[Status]],TabStati[],2,FALSE)","v":1}]
[{"$nulls":15},7,null,null,1,"1-sehr hoch",null,"3-mittel",null,null,"2-hoch",null,"2-hoch",null,null,"2-mittel",{"$nulls":3},{"$f":"IF(SUM(TabAnforderungen[[#This Row],[Schätzung 1]:[Schätzung 2]])=0,0,AVERAGE(TabAnforderungen[[#This Row],[Schätzung 1]:[Schätzung 2]]))","v":{"v":0,"d":"0.0"}},null,{"$f":"SUM(TabAnforderungen[[#This Row],[Schätzung netto]:[Reserve]])","v":{"v":0,"d":"0.0"}},{"$nulls":4},"abgelehnt",{"$f":"VLOOKUP(TabAnforderungen[[#This Row],[Status]],TabStati[],2,FALSE)","v":0}]
[{"$nulls":18},1,"2-hoch",null,"2-hoch",null,null,"3-mittel",null,"3-mittel",null,null,"1-hoch",{"$nulls":3},{"$f":"IF(SUM(TabAnforderungen[[#This Row],[Schätzung 1]:[Schätzung 2]])=0,0,AVERAGE(TabAnforderungen[[#This Row],[Schätzung 1]:[Schätzung 2]]))","v":{"v":0,"d":"0.0"}},null,{"$f":"SUM(TabAnforderungen[[#This Row],[Schätzung netto]:[Reserve]])","v":{"v":0,"d":"0.0"}},{"$nulls":4},"geprüft",{"$f":"VLOOKUP(TabAnforderungen[[#This Row],[Status]],TabStati[],2,FALSE)","v":1}]
[{"$nulls":18},3,"2-hoch",null,"1-sehr hoch",null,null,"4-tief",null,"1-sehr hoch",null,null,"3-gering",{"$nulls":3},{"$f":"IF(SUM(TabAnforderungen[[#This Row],[Schätzung 1]:[Schätzung 2]])=0,0,AVERAGE(TabAnforderungen[[#This Row],[Schätzung 1]:[Schätzung 2]]))","v":{"v":0,"d":"0.0"}},null,{"$f":"SUM(TabAnforderungen[[#This Row],[Schätzung netto]:[Reserve]])","v":{"v":0,"d":"0.0"}},{"$nulls":4},"beantragt",{"$f":"VLOOKUP(TabAnforderungen[[#This Row],[Status]],TabStati[],2,FALSE)","v":1}]
[{"$nulls":19},"2-hoch",null,"1-sehr hoch",null,null,"1-sehr hoch",null,"4-tief",null,null,"1-hoch",{"$nulls":3},{"$f":"IF(SUM(TabAnforderungen[[#This Row],[Schätzung 1]:[Schätzung 2]])=0,0,AVERAGE(TabAnforderungen[[#This Row],[Schätzung 1]:[Schätzung 2]]))","v":{"v":0,"d":"0.0"}},null,{"$f":"SUM(TabAnforderungen[[#This Row],[Schätzung netto]:[Reserve]])","v":{"v":0,"d":"0.0"}},{"$nulls":4},"Lösung spezifiziert",{"$f":"VLOOKUP(TabAnforderungen[[#This Row],[Status]],TabStati[],2,FALSE)","v":1}]
[{"$nulls":19},"2-hoch",null,"1-sehr hoch",null,null,"2-hoch",null,"2-hoch",null,null,"2-mittel",{"$nulls":3},{"$f":"IF(SUM(TabAnforderungen[[#This Row],[Schätzung 1]:[Schätzung 2]])=0,0,AVERAGE(TabAnforderungen[[#This Row],[Schätzung 1]:[Schätzung 2]]))","v":{"v":0,"d":"0.0"}},null,{"$f":"SUM(TabAnforderungen[[#This Row],[Schätzung netto]:[Reserve]])","v":{"v":0,"d":"0.0"}},{"$nulls":4},"geprüft",{"$f":"VLOOKUP(TabAnforderungen[[#This Row],[Status]],TabStati[],2,FALSE)","v":1}]
[{"$nulls":19},"1-sehr hoch",null,"1-sehr hoch",null,null,"1-sehr hoch",null,"3-mittel",null,null,"1-hoch",{"$nulls":3},{"$f":"IF(SUM(TabAnforderungen[[#This Row],[Schätzung 1]:[Schätzung 2]])=0,0,AVERAGE(TabAnforderungen[[#This Row],[Schätzung 1]:[Schätzung 2]]))","v":{"v":0,"d":"0.0"}},null,{"$f":"SUM(TabAnforderungen[[#This Row],[Schätzung netto]:[Reserve]])","v":{"v":0,"d":"0.0"}},{"$nulls":4},"Lösung spezifiziert",{"$f":"VLOOKUP(TabAnforderungen[[#This Row],[Status]],TabStati[],2,FALSE)","v":1}]
[{"$nulls":19},"1-sehr hoch",null,"1-sehr hoch",null,null,"2-hoch",null,"1-sehr hoch",null,null,"3-gering",{"$nulls":3},{"$f":"IF(SUM(TabAnforderungen[[#This Row],[Schätzung 1]:[Schätzung 2]])=0,0,AVERAGE(TabAnforderungen[[#This Row],[Schätzung 1]:[Schätzung 2]]))","v":{"v":0,"d":"0.0"}},null,{"$f":"SUM(TabAnforderungen[[#This Row],[Schätzung netto]:[Reserve]])","v":{"v":0,"d":"0.0"}},{"$nulls":4},"analysiert",{"$f":"VLOOKUP(TabAnforderungen[[#This Row],[Status]],TabStati[],2,FALSE)","v":1}]
[{"$nulls":19},"1-sehr hoch",null,"2-hoch",null,null,"1-sehr hoch",null,"4-tief",null,null,"1-hoch",{"$nulls":3},{"$f":"IF(SUM(TabAnforderungen[[#This Row],[Schätzung 1]:[Schätzung 2]])=0,0,AVERAGE(TabAnforderungen[[#This Row],[Schätzung 1]:[Schätzung 2]]))","v":{"v":0,"d":"0.0"}},null,{"$f":"SUM(TabAnforderungen[[#This Row],[Schätzung netto]:[Reserve]])","v":{"v":0,"d":"0.0"}},{"$nulls":4},"abgeleitet aus",{"$f":"VLOOKUP(TabAnforderungen[[#This Row],[Status]],TabStati[],2,FALSE)","v":1}]
[{"$nulls":19},"2-hoch",null,"2-hoch",null,null,"3-mittel",null,"2-hoch",null,null,"2-mittel",{"$nulls":3},{"$f":"IF(SUM(TabAnforderungen[[#This Row],[Schätzung 1]:[Schätzung 2]])=0,0,AVERAGE(TabAnforderungen[[#This Row],[Schätzung 1]:[Schätzung 2]]))","v":{"v":0,"d":"0.0"}},null,{"$f":"SUM(TabAnforderungen[[#This Row],[Schätzung netto]:[Reserve]])","v":{"v":0,"d":"0.0"}},{"$nulls":4},"akzeptiert",{"$f":"VLOOKUP(TabAnforderungen[[#This Row],[Status]],TabStati[],2,FALSE)","v":1}]
[{"$nulls":19},"2-hoch",null,"2-hoch",null,null,"2-hoch",null,"3-mittel",null,null,"1-hoch",{"$nulls":3},{"$f":"IF(SUM(TabAnforderungen[[#This Row],[Schätzung 1]:[Schätzung 2]])=0,0,AVERAGE(TabAnforderungen[[#This Row],[Schätzung 1]:[Schätzung 2]]))","v":{"v":0,"d":"0.0"}},null,{"$f":"SUM(TabAnforderungen[[#This Row],[Schätzung netto]:[Reserve]])","v":{"v":0,"d":"0.0"}},{"$nulls":4},"beantragt",{"$f":"VLOOKUP(TabAnforderungen[[#This Row],[Status]],TabStati[],2,FALSE)","v":1}]
[{"$nulls":19},"3-mittel",null,"3-mittel",null,null,"3-mittel",null,"1-sehr hoch",null,null,"3-gering",{"$nulls":3},{"$f":"IF(SUM(TabAnforderungen[[#This Row],[Schätzung 1]:[Schätzung 2]])=0,0,AVERAGE(TabAnforderungen[[#This Row],[Schätzung 1]:[Schätzung 2]]))","v":{"v":0,"d":"0.0"}},null,{"$f":"SUM(TabAnforderungen[[#This Row],[Schätzung netto]:[Reserve]])","v":{"v":0,"d":"0.0"}},{"$nulls":4},"Lösung spezifiziert",{"$f":"VLOOKUP(TabAnforderungen[[#This Row],[Status]],TabStati[],2,FALSE)","v":1}]
[{"$nulls":19},"3-mittel",null,"3-mittel",null,null,"4-tief",null,"4-tief",null,null,"1-hoch",{"$nulls":3},{"$f":"IF(SUM(TabAnforderungen[[#This Row],[Schätzung 1]:[Schätzung 2]])=0,0,AVERAGE(TabAnforderungen[[#This Row],[Schätzung 1]:[Schätzung 2]]))","v":{"v":0,"d":"0.0"}},null,{"$f":"SUM(TabAnforderungen[[#This Row],[Schätzung netto]:[Reserve]])","v":{"v":0,"d":"0.0"}},{"$nulls":4},"analysiert",{"$f":"VLOOKUP(TabAnforderungen[[#This Row],[Status]],TabStati[],2,FALSE)","v":1}]
[{"$nulls":19},"4-tief",null,"4-tief",null,null,"1-sehr hoch",null,"2-hoch",null,null,"2-mittel",{"$nulls":3},{"$f":"IF(SUM(TabAnforderungen[[#This Row],[Schätzung 1]:[Schätzung 2]])=0,0,AVERAGE(TabAnforderungen[[#This Row],[Schätzung 1]:[Schätzung 2]]))","v":{"v":0,"d":"0.0"}},null,{"$f":"SUM(TabAnforderungen[[#This Row],[Schätzung netto]:[Reserve]])","v":{"v":0,"d":"0.0"}},{"$nulls":4},"Lösung spezifiziert",{"$f":"VLOOKUP(TabAnforderungen[[#This Row],[Status]],TabStati[],2,FALSE)","v":1}]
[{"$nulls":19},"4-tief",null,"1-sehr hoch",null,null,"3-mittel",null,"3-mittel",null,null,"1-hoch",{"$nulls":3},{"$f":"IF(SUM(TabAnforderungen[[#This Row],[Schätzung 1]:[Schätzung 2]])=0,0,AVERAGE(TabAnforderungen[[#This Row],[Schätzung 1]:[Schätzung 2]]))","v":{"v":0,"d":"0.0"}},null,{"$f":"SUM(TabAnforderungen[[#This Row],[Schätzung netto]:[Reserve]])","v":{"v":0,"d":"0.0"}},{"$nulls":4},"analysiert",{"$f":"VLOOKUP(TabAnforderungen[[#This Row],[Status]],TabStati[],2,FALSE)","v":1}]
[{"$nulls":19},"4-tief",null,"2-hoch",null,null,"2-hoch",null,"1-sehr hoch",null,null,"3-gering",{"$nulls":3},{"$f":"IF(SUM(TabAnforderungen[[#This Row],[Schätzung 1]:[Schätzung 2]])=0,0,AVERAGE(TabAnforderungen[[#This Row],[Schätzung 1]:[Schätzung 2]]))","v":{"v":0,"d":"0.0"}},null,{"$f":"SUM(TabAnforderungen[[#This Row],[Schätzung netto]:[Reserve]])","v":{"v":0,"d":"0.0"}},{"$nulls":4},"abgeleitet aus",{"$f":"VLOOKUP(TabAnforderungen[[#This Row],[Status]],TabStati[],2,FALSE)","v":1}]
[{"$nulls":19},"3-mittel",null,"3-mittel",null,null,"3-mittel",null,"4-tief",null,null,"1-hoch",{"$nulls":3},{"$f":"IF(SUM(TabAnforderungen[[#This Row],[Schätzung 1]:[Schätzung 2]])=0,0,AVERAGE(TabAnforderungen[[#This Row],[Schätzung 1]:[Schätzung 2]]))","v":{"v":0,"d":"0.0"}},null,{"$f":"SUM(TabAnforderungen[[#This Row],[Schätzung netto]:[Reserve]])","v":{"v":0,"d":"0.0"}},{"$nulls":4},"akzeptiert",{"$f":"VLOOKUP(TabAnforderungen[[#This Row],[Status]],TabStati[],2,FALSE)","v":1}]
[{"$nulls":19},"3-mittel",null,"4-tief",null,null,"4-tief",null,"2-hoch",null,null,"2-mittel",{"$nulls":3},{"$f":"IF(SUM(TabAnforderungen[[#This Row],[Schätzung 1]:[Schätzung 2]])=0,0,AVERAGE(TabAnforderungen[[#This Row],[Schätzung 1]:[Schätzung 2]]))","v":{"v":0,"d":"0.0"}},null,{"$f":"SUM(TabAnforderungen[[#This Row],[Schätzung netto]:[Reserve]])","v":{"v":0,"d":"0.0"}},{"$nulls":4},"beantragt",{"$f":"VLOOKUP(TabAnforderungen[[#This Row],[Status]],TabStati[],2,FALSE)","v":1}]
[{"$nulls":19},"3-mittel",null,"4-tief",null,null,"1-sehr hoch",null,"3-mittel",null,null,"1-hoch",{"$nulls":3},{"$f":"IF(SUM(TabAnforderungen[[#This Row],[Schätzung 1]:[Schätzung 2]])=0,0,AVERAGE(TabAnforderungen[[#This Row],[Schätzung 1]:[Schätzung 2]]))","v":{"v":0,"d":"0.0"}},null,{"$f":"SUM(TabAnforderungen[[#This Row],[Schätzung netto]:[Reserve]])","v":{"v":0,"d":"0.0"}},{"$nulls":4},"abgelehnt",{"$f":"VLOOKUP(TabAnforderungen[[#This Row],[Status]],TabStati[],2,FALSE)","v":0}]
[{"$nulls":19},"1-sehr hoch",null,"3-mittel",null,null,"3-mittel",null,"1-sehr hoch",null,null,"3-gering",{"$nulls":3},{"$f":"IF(SUM(TabAnforderungen[[#This Row],[Schätzung 1]:[Schätzung 2]])=0,0,AVERAGE(TabAnforderungen[[#This Row],[Schätzung 1]:[Schätzung 2]]))","v":{"v":0,"d":"0.0"}},null,{"$f":"SUM(TabAnforderungen[[#This Row],[Schätzung netto]:[Reserve]])","v":{"v":0,"d":"0.0"}},{"$nulls":4},"beantragt",{"$f":"VLOOKUP(TabAnforderungen[[#This Row],[Status]],TabStati[],2,FALSE)","v":1}]
[{"$nulls":19},"2-hoch",null,"2-hoch",null,null,"2-hoch",null,"3-mittel",null,null,"2-mittel",{"$nulls":3},{"$f":"IF(SUM(TabAnforderungen[[#This Row],[Schätzung 1]:[Schätzung 2]])=0,0,AVERAGE(TabAnforderungen[[#This Row],[Schätzung 1]:[Schätzung 2]]))","v":{"v":0,"d":"0.0"}},null,{"$f":"SUM(TabAnforderungen[[#This Row],[Schätzung netto]:[Reserve]])","v":{"v":0,"d":"0.0"}},{"$nulls":4},"umgesetzt",{"$f":"VLOOKUP(TabAnforderungen[[#This Row],[Status]],TabStati[],2,FALSE)","v":1}]
[{"$nulls":19},"4-tief",null,"1-sehr hoch",null,null,"3-mittel",null,"1-sehr hoch",null,null,"2-mittel",{"$nulls":3},{"$f":"IF(SUM(TabAnforderungen[[#This Row],[Schätzung 1]:[Schätzung 2]])=0,0,AVERAGE(TabAnforderungen[[#This Row],[Schätzung 1]:[Schätzung 2]]))","v":{"v":0,"d":"0.0"}},null,{"$f":"SUM(TabAnforderungen[[#This Row],[Schätzung netto]:[Reserve]])","v":{"v":0,"d":"0.0"}},{"$nulls":4},"unvollständig",{"$f":"VLOOKUP(TabAnforderungen[[#This Row],[Status]],TabStati[],2,FALSE)","v":1}]
[{"$nulls":19},"3-mittel",null,"2-hoch",null,null,"4-tief",null,"1-sehr hoch",null,null,"2-mittel",{"$nulls":3},{"$f":"IF(SUM(TabAnforderungen[[#This Row],[Schätzung 1]:[Schätzung 2]])=0,0,AVERAGE(TabAnforderungen[[#This Row],[Schätzung 1]:[Schätzung 2]]))","v":{"v":0,"d":"0.0"}},null,{"$f":"SUM(TabAnforderungen[[#This Row],[Schätzung netto]:[Reserve]])","v":{"v":0,"d":"0.0"}},{"$nulls":4},"akzeptiert",{"$f":"VLOOKUP(TabAnforderungen[[#This Row],[Status]],TabStati[],2,FALSE)","v":1}]
[{"$nulls":33},{"$f":"IF(SUM(TabAnforderungen[[#This Row],[Schätzung 1]:[Schätzung 2]])=0,0,AVERAGE(TabAnforderungen[[#This Row],[Schätzung 1]:[Schätzung 2]]))","v":{"v":0,"d":"0.0"}},null,{"$f":"SUM(TabAnforderungen[[#This Row],[Schätzung netto]:[Reserve]])","v":{"v":0,"d":"0.0"}},{"$nulls":5},{"$f":"VLOOKUP(TabAnforderungen[[#This Row],[Status]],TabStati[],2,FALSE)","v":{"$error":"#N/A"}}]
[{"$nulls":33},{"$f":"IF(SUM(TabAnforderungen[[#This Row],[Schätzung 1]:[Schätzung 2]])=0,0,AVERAGE(TabAnforderungen[[#This Row],[Schätzung 1]:[Schätzung 2]]))","v":{"v":0,"d":"0.0"}},null,{"$f":"SUM(TabAnforderungen[[#This Row],[Schätzung netto]:[Reserve]])","v":{"v":0,"d":"0.0"}},{"$nulls":5},{"$f":"VLOOKUP(TabAnforderungen[[#This Row],[Status]],TabStati[],2,FALSE)","v":{"$error":"#N/A"}}]
[{"$nulls":33},{"$f":"IF(SUM(TabAnforderungen[[#This Row],[Schätzung 1]:[Schätzung 2]])=0,0,AVERAGE(TabAnforderungen[[#This Row],[Schätzung 1]:[Schätzung 2]]))","v":{"v":0,"d":"0.0"}},null,{"$f":"SUM(TabAnforderungen[[#This Row],[Schätzung netto]:[Reserve]])","v":{"v":0,"d":"0.0"}},{"$nulls":5},{"$f":"VLOOKUP(TabAnforderungen[[#This Row],[Status]],TabStati[],2,FALSE)","v":{"$error":"#N/A"}}]
[{"$nulls":33},{"$f":"IF(SUM(TabAnforderungen[[#This Row],[Schätzung 1]:[Schätzung 2]])=0,0,AVERAGE(TabAnforderungen[[#This Row],[Schätzung 1]:[Schätzung 2]]))","v":{"v":0,"d":"0.0"}},null,{"$f":"SUM(TabAnforderungen[[#This Row],[Schätzung netto]:[Reserve]])","v":{"v":0,"d":"0.0"}},{"$nulls":5},{"$f":"VLOOKUP(TabAnforderungen[[#This Row],[Status]],TabStati[],2,FALSE)","v":{"$error":"#N/A"}}]
[{"$nulls":33},{"$f":"IF(SUM(TabAnforderungen[[#This Row],[Schätzung 1]:[Schätzung 2]])=0,0,AVERAGE(TabAnforderungen[[#This Row],[Schätzung 1]:[Schätzung 2]]))","v":{"v":0,"d":"0.0"}},null,{"$f":"SUM(TabAnforderungen[[#This Row],[Schätzung netto]:[Reserve]])","v":{"v":0,"d":"0.0"}},{"$nulls":5},{"$f":"VLOOKUP(TabAnforderungen[[#This Row],[Status]],TabStati[],2,FALSE)","v":{"$error":"#N/A"}}]
[{"$nulls":33},{"$f":"IF(SUM(TabAnforderungen[[#This Row],[Schätzung 1]:[Schätzung 2]])=0,0,AVERAGE(TabAnforderungen[[#This Row],[Schätzung 1]:[Schätzung 2]]))","v":{"v":0,"d":"0.0"}},null,{"$f":"SUM(TabAnforderungen[[#This Row],[Schätzung netto]:[Reserve]])","v":{"v":0,"d":"0.0"}},{"$nulls":5},{"$f":"VLOOKUP(TabAnforderungen[[#This Row],[Status]],TabStati[],2,FALSE)","v":{"$error":"#N/A"}}]
[{"$nulls":33},{"$f":"IF(SUM(TabAnforderungen[[#This Row],[Schätzung 1]:[Schätzung 2]])=0,0,AVERAGE(TabAnforderungen[[#This Row],[Schätzung 1]:[Schätzung 2]]))","v":{"v":0,"d":"0.0"}},null,{"$f":"SUM(TabAnforderungen[[#This Row],[Schätzung netto]:[Reserve]])","v":{"v":0,"d":"0.0"}},{"$nulls":5},{"$f":"VLOOKUP(TabAnforderungen[[#This Row],[Status]],TabStati[],2,FALSE)","v":{"$error":"#N/A"}}]
[{"$nulls":33},{"$f":"IF(SUM(TabAnforderungen[[#This Row],[Schätzung 1]:[Schätzung 2]])=0,0,AVERAGE(TabAnforderungen[[#This Row],[Schätzung 1]:[Schätzung 2]]))","v":{"v":0,"d":"0.0"}},null,{"$f":"SUM(TabAnforderungen[[#This Row],[Schätzung netto]:[Reserve]])","v":{"v":0,"d":"0.0"}},{"$nulls":5},{"$f":"VLOOKUP(TabAnforderungen[[#This Row],[Status]],TabStati[],2,FALSE)","v":{"$error":"#N/A"}}]
[{"$nulls":33},{"$f":"IF(SUM(TabAnforderungen[[#This Row],[Schätzung 1]:[Schätzung 2]])=0,0,AVERAGE(TabAnforderungen[[#This Row],[Schätzung 1]:[Schätzung 2]]))","v":{"v":0,"d":"0.0"}},null,{"$f":"SUM(TabAnforderungen[[#This Row],[Schätzung netto]:[Reserve]])","v":{"v":0,"d":"0.0"}},{"$nulls":5},{"$f":"VLOOKUP(TabAnforderungen[[#This Row],[Status]],TabStati[],2,FALSE)","v":{"$error":"#N/A"}}]
[{"$nulls":33},{"$f":"IF(SUM(TabAnforderungen[[#This Row],[Schätzung 1]:[Schätzung 2]])=0,0,AVERAGE(TabAnforderungen[[#This Row],[Schätzung 1]:[Schätzung 2]]))","v":{"v":0,"d":"0.0"}},null,{"$f":"SUM(TabAnforderungen[[#This Row],[Schätzung netto]:[Reserve]])","v":{"v":0,"d":"0.0"}},{"$nulls":5},{"$f":"VLOOKUP(TabAnforderungen[[#This Row],[Status]],TabStati[],2,FALSE)","v":{"$error":"#N/A"}}]
[{"$nulls":33},{"$f":"IF(SUM(TabAnforderungen[[#This Row],[Schätzung 1]:[Schätzung 2]])=0,0,AVERAGE(TabAnforderungen[[#This Row],[Schätzung 1]:[Schätzung 2]]))","v":{"v":0,"d":"0.0"}},null,{"$f":"SUM(TabAnforderungen[[#This Row],[Schätzung netto]:[Reserve]])","v":{"v":0,"d":"0.0"}},{"$nulls":5},{"$f":"VLOOKUP(TabAnforderungen[[#This Row],[Status]],TabStati[],2,FALSE)","v":{"$error":"#N/A"}}]
[{"$nulls":33},{"$f":"IF(SUM(TabAnforderungen[[#This Row],[Schätzung 1]:[Schätzung 2]])=0,0,AVERAGE(TabAnforderungen[[#This Row],[Schätzung 1]:[Schätzung 2]]))","v":{"v":0,"d":"0.0"}},null,{"$f":"SUM(TabAnforderungen[[#This Row],[Schätzung netto]:[Reserve]])","v":{"v":0,"d":"0.0"}},{"$nulls":5},{"$f":"VLOOKUP(TabAnforderungen[[#This Row],[Status]],TabStati[],2,FALSE)","v":{"$error":"#N/A"}}]
[{"$nulls":33},{"$f":"IF(SUM(TabAnforderungen[[#This Row],[Schätzung 1]:[Schätzung 2]])=0,0,AVERAGE(TabAnforderungen[[#This Row],[Schätzung 1]:[Schätzung 2]]))","v":{"v":0,"d":"0.0"}},null,{"$f":"SUM(TabAnforderungen[[#This Row],[Schätzung netto]:[Reserve]])","v":{"v":0,"d":"0.0"}},{"$nulls":5},{"$f":"VLOOKUP(TabAnforderungen[[#This Row],[Status]],TabStati[],2,FALSE)","v":{"$error":"#N/A"}}]
[{"$nulls":33},{"$f":"IF(SUM(TabAnforderungen[[#This Row],[Schätzung 1]:[Schätzung 2]])=0,0,AVERAGE(TabAnforderungen[[#This Row],[Schätzung 1]:[Schätzung 2]]))","v":{"v":0,"d":"0.0"}},null,{"$f":"SUM(TabAnforderungen[[#This Row],[Schätzung netto]:[Reserve]])","v":{"v":0,"d":"0.0"}},{"$nulls":5},{"$f":"VLOOKUP(TabAnforderungen[[#This Row],[Status]],TabStati[],2,FALSE)","v":{"$error":"#N/A"}}]
[{"$nulls":33},{"$f":"IF(SUM(TabAnforderungen[[#This Row],[Schätzung 1]:[Schätzung 2]])=0,0,AVERAGE(TabAnforderungen[[#This Row],[Schätzung 1]:[Schätzung 2]]))","v":{"v":0,"d":"0.0"}},null,{"$f":"SUM(TabAnforderungen[[#This Row],[Schätzung netto]:[Reserve]])","v":{"v":0,"d":"0.0"}},{"$nulls":5},{"$f":"VLOOKUP(TabAnforderungen[[#This Row],[Status]],TabStati[],2,FALSE)","v":{"$error":"#N/A"}}]
[{"$nulls":33},{"$f":"IF(SUM(TabAnforderungen[[#This Row],[Schätzung 1]:[Schätzung 2]])=0,0,AVERAGE(TabAnforderungen[[#This Row],[Schätzung 1]:[Schätzung 2]]))","v":{"v":0,"d":"0.0"}},null,{"$f":"SUM(TabAnforderungen[[#This Row],[Schätzung netto]:[Reserve]])","v":{"v":0,"d":"0.0"}},{"$nulls":5},{"$f":"VLOOKUP(TabAnforderungen[[#This Row],[Status]],TabStati[],2,FALSE)","v":{"$error":"#N/A"}}]
[{"$nulls":33},{"$f":"IF(SUM(TabAnforderungen[[#This Row],[Schätzung 1]:[Schätzung 2]])=0,0,AVERAGE(TabAnforderungen[[#This Row],[Schätzung 1]:[Schätzung 2]]))","v":{"v":0,"d":"0.0"}},null,{"$f":"SUM(TabAnforderungen[[#This Row],[Schätzung netto]:[Reserve]])","v":{"v":0,"d":"0.0"}},{"$nulls":5},{"$f":"VLOOKUP(TabAnforderungen[[#This Row],[Status]],TabStati[],2,FALSE)","v":{"$error":"#N/A"}}]
[{"$nulls":33},{"$f":"IF(SUM(TabAnforderungen[[#This Row],[Schätzung 1]:[Schätzung 2]])=0,0,AVERAGE(TabAnforderungen[[#This Row],[Schätzung 1]:[Schätzung 2]]))","v":{"v":0,"d":"0.0"}},null,{"$f":"SUM(TabAnforderungen[[#This Row],[Schätzung netto]:[Reserve]])","v":{"v":0,"d":"0.0"}},{"$nulls":5},{"$f":"VLOOKUP(TabAnforderungen[[#This Row],[Status]],TabStati[],2,FALSE)","v":{"$error":"#N/A"}}]
[{"$nulls":33},{"$f":"IF(SUM(TabAnforderungen[[#This Row],[Schätzung 1]:[Schätzung 2]])=0,0,AVERAGE(TabAnforderungen[[#This Row],[Schätzung 1]:[Schätzung 2]]))","v":{"v":0,"d":"0.0"}},null,{"$f":"SUM(TabAnforderungen[[#This Row],[Schätzung netto]:[Reserve]])","v":{"v":0,"d":"0.0"}},{"$nulls":5},{"$f":"VLOOKUP(TabAnforderungen[[#This Row],[Status]],TabStati[],2,FALSE)","v":{"$error":"#N/A"}}]
[{"$nulls":33},{"$f":"IF(SUM(TabAnforderungen[[#This Row],[Schätzung 1]:[Schätzung 2]])=0,0,AVERAGE(TabAnforderungen[[#This Row],[Schätzung 1]:[Schätzung 2]]))","v":{"v":0,"d":"0.0"}},null,{"$f":"SUM(TabAnforderungen[[#This Row],[Schätzung netto]:[Reserve]])","v":{"v":0,"d":"0.0"}},{"$nulls":5},{"$f":"VLOOKUP(TabAnforderungen[[#This Row],[Status]],TabStati[],2,FALSE)","v":{"$error":"#N/A"}}]
[{"$nulls":33},{"$f":"IF(SUM(TabAnforderungen[[#This Row],[Schätzung 1]:[Schätzung 2]])=0,0,AVERAGE(TabAnforderungen[[#This Row],[Schätzung 1]:[Schätzung 2]]))","v":{"v":0,"d":"0.0"}},null,{"$f":"SUM(TabAnforderungen[[#This Row],[Schätzung netto]:[Reserve]])","v":{"v":0,"d":"0.0"}},{"$nulls":5},{"$f":"VLOOKUP(TabAnforderungen[[#This Row],[Status]],TabStati[],2,FALSE)","v":{"$error":"#N/A"}}]
[{"$nulls":33},{"$f":"IF(SUM(TabAnforderungen[[#This Row],[Schätzung 1]:[Schätzung 2]])=0,0,AVERAGE(TabAnforderungen[[#This Row],[Schätzung 1]:[Schätzung 2]]))","v":{"v":0,"d":"0.0"}},null,{"$f":"SUM(TabAnforderungen[[#This Row],[Schätzung netto]:[Reserve]])","v":{"v":0,"d":"0.0"}},{"$nulls":5},{"$f":"VLOOKUP(TabAnforderungen[[#This Row],[Status]],TabStati[],2,FALSE)","v":{"$error":"#N/A"}}]
[{"$nulls":33},{"$f":"IF(SUM(TabAnforderungen[[#This Row],[Schätzung 1]:[Schätzung 2]])=0,0,AVERAGE(TabAnforderungen[[#This Row],[Schätzung 1]:[Schätzung 2]]))","v":{"v":0,"d":"0.0"}},null,{"$f":"SUM(TabAnforderungen[[#This Row],[Schätzung netto]:[Reserve]])","v":{"v":0,"d":"0.0"}},{"$nulls":5},{"$f":"VLOOKUP(TabAnforderungen[[#This Row],[Status]],TabStati[],2,FALSE)","v":{"$error":"#N/A"}}]
[{"$nulls":33},{"$f":"IF(SUM(TabAnforderungen[[#This Row],[Schätzung 1]:[Schätzung 2]])=0,0,AVERAGE(TabAnforderungen[[#This Row],[Schätzung 1]:[Schätzung 2]]))","v":{"v":0,"d":"0.0"}},null,{"$f":"SUM(TabAnforderungen[[#This Row],[Schätzung netto]:[Reserve]])","v":{"v":0,"d":"0.0"}},{"$nulls":5},{"$f":"VLOOKUP(TabAnforderungen[[#This Row],[Status]],TabStati[],2,FALSE)","v":{"$error":"#N/A"}}]
[{"$nulls":33},{"$f":"IF(SUM(TabAnforderungen[[#This Row],[Schätzung 1]:[Schätzung 2]])=0,0,AVERAGE(TabAnforderungen[[#This Row],[Schätzung 1]:[Schätzung 2]]))","v":{"v":0,"d":"0.0"}},null,{"$f":"SUM(TabAnforderungen[[#This Row],[Schätzung netto]:[Reserve]])","v":{"v":0,"d":"0.0"}},{"$nulls":5},{"$f":"VLOOKUP(TabAnforderungen[[#This Row],[Status]],TabStati[],2,FALSE)","v":{"$error":"#N/A"}}]
[{"$nulls":33},{"$f":"IF(SUM(TabAnforderungen[[#This Row],[Schätzung 1]:[Schätzung 2]])=0,0,AVERAGE(TabAnforderungen[[#This Row],[Schätzung 1]:[Schätzung 2]]))","v":{"v":0,"d":"0.0"}},null,{"$f":"SUM(TabAnforderungen[[#This Row],[Schätzung netto]:[Reserve]])","v":{"v":0,"d":"0.0"}},{"$nulls":5},{"$f":"VLOOKUP(TabAnforderungen[[#This Row],[Status]],TabStati[],2,FALSE)","v":{"$error":"#N/A"}}]
[{"$nulls":33},{"$f":"IF(SUM(TabAnforderungen[[#This Row],[Schätzung 1]:[Schätzung 2]])=0,0,AVERAGE(TabAnforderungen[[#This Row],[Schätzung 1]:[Schätzung 2]]))","v":{"v":0,"d":"0.0"}},null,{"$f":"SUM(TabAnforderungen[[#This Row],[Schätzung netto]:[Reserve]])","v":{"v":0,"d":"0.0"}},{"$nulls":5},{"$f":"VLOOKUP(TabAnforderungen[[#This Row],[Status]],TabStati[],2,FALSE)","v":{"$error":"#N/A"}}]
[{"$nulls":33},{"$f":"IF(SUM(TabAnforderungen[[#This Row],[Schätzung 1]:[Schätzung 2]])=0,0,AVERAGE(TabAnforderungen[[#This Row],[Schätzung 1]:[Schätzung 2]]))","v":{"v":0,"d":"0.0"}},null,{"$f":"SUM(TabAnforderungen[[#This Row],[Schätzung netto]:[Reserve]])","v":{"v":0,"d":"0.0"}},{"$nulls":5},{"$f":"VLOOKUP(TabAnforderungen[[#This Row],[Status]],TabStati[],2,FALSE)","v":{"$error":"#N/A"}}]
[{"$nulls":33},{"$f":"IF(SUM(TabAnforderungen[[#This Row],[Schätzung 1]:[Schätzung 2]])=0,0,AVERAGE(TabAnforderungen[[#This Row],[Schätzung 1]:[Schätzung 2]]))","v":{"v":0,"d":"0.0"}},null,{"$f":"SUM(TabAnforderungen[[#This Row],[Schätzung netto]:[Reserve]])","v":{"v":0,"d":"0.0"}},{"$nulls":5},{"$f":"VLOOKUP(TabAnforderungen[[#This Row],[Status]],TabStati[],2,FALSE)","v":{"$error":"#N/A"}}]
[{"$nulls":33},{"$f":"IF(SUM(TabAnforderungen[[#This Row],[Schätzung 1]:[Schätzung 2]])=0,0,AVERAGE(TabAnforderungen[[#This Row],[Schätzung 1]:[Schätzung 2]]))","v":{"v":0,"d":"0.0"}},null,{"$f":"SUM(TabAnforderungen[[#This Row],[Schätzung netto]:[Reserve]])","v":{"v":0,"d":"0.0"}},{"$nulls":5},{"$f":"VLOOKUP(TabAnforderungen[[#This Row],[Status]],TabStati[],2,FALSE)","v":{"$error":"#N/A"}}]
[{"$nulls":33},{"$f":"IF(SUM(TabAnforderungen[[#This Row],[Schätzung 1]:[Schätzung 2]])=0,0,AVERAGE(TabAnforderungen[[#This Row],[Schätzung 1]:[Schätzung 2]]))","v":{"v":0,"d":"0.0"}},null,{"$f":"SUM(TabAnforderungen[[#This Row],[Schätzung netto]:[Reserve]])","v":{"v":0,"d":"0.0"}},{"$nulls":5},{"$f":"VLOOKUP(TabAnforderungen[[#This Row],[Status]],TabStati[],2,FALSE)","v":{"$error":"#N/A"}}]
[{"$nulls":33},{"$f":"IF(SUM(TabAnforderungen[[#This Row],[Schätzung 1]:[Schätzung 2]])=0,0,AVERAGE(TabAnforderungen[[#This Row],[Schätzung 1]:[Schätzung 2]]))","v":{"v":0,"d":"0.0"}},null,{"$f":"SUM(TabAnforderungen[[#This Row],[Schätzung netto]:[Reserve]])","v":{"v":0,"d":"0.0"}},{"$nulls":5},{"$f":"VLOOKUP(TabAnforderungen[[#This Row],[Status]],TabStati[],2,FALSE)","v":{"$error":"#N/A"}}]
[{"$nulls":33},{"$f":"IF(SUM(TabAnforderungen[[#This Row],[Schätzung 1]:[Schätzung 2]])=0,0,AVERAGE(TabAnforderungen[[#This Row],[Schätzung 1]:[Schätzung 2]]))","v":{"v":0,"d":"0.0"}},null,{"$f":"SUM(TabAnforderungen[[#This Row],[Schätzung netto]:[Reserve]])","v":{"v":0,"d":"0.0"}},{"$nulls":5},{"$f":"VLOOKUP(TabAnforderungen[[#This Row],[Status]],TabStati[],2,FALSE)","v":{"$error":"#N/A"}}]
[{"$nulls":33},{"$f":"IF(SUM(TabAnforderungen[[#This Row],[Schätzung 1]:[Schätzung 2]])=0,0,AVERAGE(TabAnforderungen[[#This Row],[Schätzung 1]:[Schätzung 2]]))","v":{"v":0,"d":"0.0"}},null,{"$f":"SUM(TabAnforderungen[[#This Row],[Schätzung netto]:[Reserve]])","v":{"v":0,"d":"0.0"}},{"$nulls":5},{"$f":"VLOOKUP(TabAnforderungen[[#This Row],[Status]],TabStati[],2,FALSE)","v":{"$error":"#N/A"}}]
[{"$nulls":33},{"$f":"IF(SUM(TabAnforderungen[[#This Row],[Schätzung 1]:[Schätzung 2]])=0,0,AVERAGE(TabAnforderungen[[#This Row],[Schätzung 1]:[Schätzung 2]]))","v":{"v":0,"d":"0.0"}},null,{"$f":"SUM(TabAnforderungen[[#This Row],[Schätzung netto]:[Reserve]])","v":{"v":0,"d":"0.0"}},{"$nulls":5},{"$f":"VLOOKUP(TabAnforderungen[[#This Row],[Status]],TabStati[],2,FALSE)","v":{"$error":"#N/A"}}]
[{"$nulls":33},{"$f":"IF(SUM(TabAnforderungen[[#This Row],[Schätzung 1]:[Schätzung 2]])=0,0,AVERAGE(TabAnforderungen[[#This Row],[Schätzung 1]:[Schätzung 2]]))","v":{"v":0,"d":"0.0"}},null,{"$f":"SUM(TabAnforderungen[[#This Row],[Schätzung netto]:[Reserve]])","v":{"v":0,"d":"0.0"}},{"$nulls":5},{"$f":"VLOOKUP(TabAnforderungen[[#This Row],[Status]],TabStati[],2,FALSE)","v":{"$error":"#N/A"}}]
[{"$nulls":33},{"$f":"IF(SUM(TabAnforderungen[[#This Row],[Schätzung 1]:[Schätzung 2]])=0,0,AVERAGE(TabAnforderungen[[#This Row],[Schätzung 1]:[Schätzung 2]]))","v":{"v":0,"d":"0.0"}},null,{"$f":"SUM(TabAnforderungen[[#This Row],[Schätzung netto]:[Reserve]])","v":{"v":0,"d":"0.0"}},{"$nulls":5},{"$f":"VLOOKUP(TabAnforderungen[[#This Row],[Status]],TabStati[],2,FALSE)","v":{"$error":"#N/A"}}]
[{"$nulls":33},{"$f":"IF(SUM(TabAnforderungen[[#This Row],[Schätzung 1]:[Schätzung 2]])=0,0,AVERAGE(TabAnforderungen[[#This Row],[Schätzung 1]:[Schätzung 2]]))","v":{"v":0,"d":"0.0"}},null,{"$f":"SUM(TabAnforderungen[[#This Row],[Schätzung netto]:[Reserve]])","v":{"v":0,"d":"0.0"}},{"$nulls":5},{"$f":"VLOOKUP(TabAnforderungen[[#This Row],[Status]],TabStati[],2,FALSE)","v":{"$error":"#N/A"}}]
[{"$nulls":33},{"$f":"IF(SUM(TabAnforderungen[[#This Row],[Schätzung 1]:[Schätzung 2]])=0,0,AVERAGE(TabAnforderungen[[#This Row],[Schätzung 1]:[Schätzung 2]]))","v":{"v":0,"d":"0.0"}},null,{"$f":"SUM(TabAnforderungen[[#This Row],[Schätzung netto]:[Reserve]])","v":{"v":0,"d":"0.0"}},{"$nulls":5},{"$f":"VLOOKUP(TabAnforderungen[[#This Row],[Status]],TabStati[],2,FALSE)","v":{"$error":"#N/A"}}]
[{"$nulls":33},{"$f":"IF(SUM(TabAnforderungen[[#This Row],[Schätzung 1]:[Schätzung 2]])=0,0,AVERAGE(TabAnforderungen[[#This Row],[Schätzung 1]:[Schätzung 2]]))","v":{"v":0,"d":"0.0"}},null,{"$f":"SUM(TabAnforderungen[[#This Row],[Schätzung netto]:[Reserve]])","v":{"v":0,"d":"0.0"}},{"$nulls":5},{"$f":"VLOOKUP(TabAnforderungen[[#This Row],[Status]],TabStati[],2,FALSE)","v":{"$error":"#N/A"}}]
[{"$nulls":33},{"$f":"IF(SUM(TabAnforderungen[[#This Row],[Schätzung 1]:[Schätzung 2]])=0,0,AVERAGE(TabAnforderungen[[#This Row],[Schätzung 1]:[Schätzung 2]]))","v":{"v":0,"d":"0.0"}},null,{"$f":"SUM(TabAnforderungen[[#This Row],[Schätzung netto]:[Reserve]])","v":{"v":0,"d":"0.0"}},{"$nulls":5},{"$f":"VLOOKUP(TabAnforderungen[[#This Row],[Status]],TabStati[],2,FALSE)","v":{"$error":"#N/A"}}]
[{"$nulls":33},{"$f":"IF(SUM(TabAnforderungen[[#This Row],[Schätzung 1]:[Schätzung 2]])=0,0,AVERAGE(TabAnforderungen[[#This Row],[Schätzung 1]:[Schätzung 2]]))","v":{"v":0,"d":"0.0"}},null,{"$f":"SUM(TabAnforderungen[[#This Row],[Schätzung netto]:[Reserve]])","v":{"v":0,"d":"0.0"}},{"$nulls":5},{"$f":"VLOOKUP(TabAnforderungen[[#This Row],[Status]],TabStati[],2,FALSE)","v":{"$error":"#N/A"}}]
[{"$nulls":33},{"$f":"IF(SUM(TabAnforderungen[[#This Row],[Schätzung 1]:[Schätzung 2]])=0,0,AVERAGE(TabAnforderungen[[#This Row],[Schätzung 1]:[Schätzung 2]]))","v":{"v":0,"d":"0.0"}},null,{"$f":"SUM(TabAnforderungen[[#This Row],[Schätzung netto]:[Reserve]])","v":{"v":0,"d":"0.0"}},{"$nulls":5},{"$f":"VLOOKUP(TabAnforderungen[[#This Row],[Status]],TabStati[],2,FALSE)","v":{"$error":"#N/A"}}]
[{"$nulls":33},{"$f":"IF(SUM(TabAnforderungen[[#This Row],[Schätzung 1]:[Schätzung 2]])=0,0,AVERAGE(TabAnforderungen[[#This Row],[Schätzung 1]:[Schätzung 2]]))","v":{"v":0,"d":"0.0"}},null,{"$f":"SUM(TabAnforderungen[[#This Row],[Schätzung netto]:[Reserve]])","v":{"v":0,"d":"0.0"}},{"$nulls":5},{"$f":"VLOOKUP(TabAnforderungen[[#This Row],[Status]],TabStati[],2,FALSE)","v":{"$error":"#N/A"}}]
[{"$nulls":33},{"$f":"IF(SUM(TabAnforderungen[[#This Row],[Schätzung 1]:[Schätzung 2]])=0,0,AVERAGE(TabAnforderungen[[#This Row],[Schätzung 1]:[Schätzung 2]]))","v":{"v":0,"d":"0.0"}},null,{"$f":"SUM(TabAnforderungen[[#This Row],[Schätzung netto]:[Reserve]])","v":{"v":0,"d":"0.0"}},{"$nulls":5},{"$f":"VLOOKUP(TabAnforderungen[[#This Row],[Status]],TabStati[],2,FALSE)","v":{"$error":"#N/A"}}]
[{"$nulls":33},{"$f":"IF(SUM(TabAnforderungen[[#This Row],[Schätzung 1]:[Schätzung 2]])=0,0,AVERAGE(TabAnforderungen[[#This Row],[Schätzung 1]:[Schätzung 2]]))","v":{"v":0,"d":"0.0"}},null,{"$f":"SUM(TabAnforderungen[[#This Row],[Schätzung netto]:[Reserve]])","v":{"v":0,"d":"0.0"}},{"$nulls":5},{"$f":"VLOOKUP(TabAnforderungen[[#This Row],[Status]],TabStati[],2,FALSE)","v":{"$error":"#N/A"}}]
[{"$nulls":33},{"$f":"IF(SUM(TabAnforderungen[[#This Row],[Schätzung 1]:[Schätzung 2]])=0,0,AVERAGE(TabAnforderungen[[#This Row],[Schätzung 1]:[Schätzung 2]]))","v":{"v":0,"d":"0.0"}},null,{"$f":"SUM(TabAnforderungen[[#This Row],[Schätzung netto]:[Reserve]])","v":{"v":0,"d":"0.0"}},{"$nulls":5},{"$f":"VLOOKUP(TabAnforderungen[[#This Row],[Status]],TabStati[],2,FALSE)","v":{"$error":"#N/A"}}]
[{"$nulls":33},{"$f":"IF(SUM(TabAnforderungen[[#This Row],[Schätzung 1]:[Schätzung 2]])=0,0,AVERAGE(TabAnforderungen[[#This Row],[Schätzung 1]:[Schätzung 2]]))","v":{"v":0,"d":"0.0"}},null,{"$f":"SUM(TabAnforderungen[[#This Row],[Schätzung netto]:[Reserve]])","v":{"v":0,"d":"0.0"}},{"$nulls":5},{"$f":"VLOOKUP(TabAnforderungen[[#This Row],[Status]],TabStati[],2,FALSE)","v":{"$error":"#N/A"}}]
[{"$nulls":33},{"$f":"IF(SUM(TabAnforderungen[[#This Row],[Schätzung 1]:[Schätzung 2]])=0,0,AVERAGE(TabAnforderungen[[#This Row],[Schätzung 1]:[Schätzung 2]]))","v":{"v":0,"d":"0.0"}},null,{"$f":"SUM(TabAnforderungen[[#This Row],[Schätzung netto]:[Reserve]])","v":{"v":0,"d":"0.0"}},{"$nulls":5},{"$f":"VLOOKUP(TabAnforderungen[[#This Row],[Status]],TabStati[],2,FALSE)","v":{"$error":"#N/A"}}]
[{"$nulls":33},{"$f":"IF(SUM(TabAnforderungen[[#This Row],[Schätzung 1]:[Schätzung 2]])=0,0,AVERAGE(TabAnforderungen[[#This Row],[Schätzung 1]:[Schätzung 2]]))","v":{"v":0,"d":"0.0"}},null,{"$f":"SUM(TabAnforderungen[[#This Row],[Schätzung netto]:[Reserve]])","v":{"v":0,"d":"0.0"}},{"$nulls":5},{"$f":"VLOOKUP(TabAnforderungen[[#This Row],[Status]],TabStati[],2,FALSE)","v":{"$error":"#N/A"}}]
[{"$nulls":33},{"$f":"IF(SUM(TabAnforderungen[[#This Row],[Schätzung 1]:[Schätzung 2]])=0,0,AVERAGE(TabAnforderungen[[#This Row],[Schätzung 1]:[Schätzung 2]]))","v":{"v":0,"d":"0.0"}},null,{"$f":"SUM(TabAnforderungen[[#This Row],[Schätzung netto]:[Reserve]])","v":{"v":0,"d":"0.0"}},{"$nulls":5},{"$f":"VLOOKUP(TabAnforderungen[[#This Row],[Status]],TabStati[],2,FALSE)","v":{"$error":"#N/A"}}]
[{"$nulls":33},{"$f":"IF(SUM(TabAnforderungen[[#This Row],[Schätzung 1]:[Schätzung 2]])=0,0,AVERAGE(TabAnforderungen[[#This Row],[Schätzung 1]:[Schätzung 2]]))","v":{"v":0,"d":"0.0"}},null,{"$f":"SUM(TabAnforderungen[[#This Row],[Schätzung netto]:[Reserve]])","v":{"v":0,"d":"0.0"}},{"$nulls":5},{"$f":"VLOOKUP(TabAnforderungen[[#This Row],[Status]],TabStati[],2,FALSE)","v":{"$error":"#N/A"}}]
[{"$nulls":33},{"$f":"IF(SUM(TabAnforderungen[[#This Row],[Schätzung 1]:[Schätzung 2]])=0,0,AVERAGE(TabAnforderungen[[#This Row],[Schätzung 1]:[Schätzung 2]]))","v":{"v":0,"d":"0.0"}},null,{"$f":"SUM(TabAnforderungen[[#This Row],[Schätzung netto]:[Reserve]])","v":{"v":0,"d":"0.0"}},{"$nulls":5},{"$f":"VLOOKUP(TabAnforderungen[[#This Row],[Status]],TabStati[],2,FALSE)","v":{"$error":"#N/A"}}]
[{"$nulls":33},{"$f":"IF(SUM(TabAnforderungen[[#This Row],[Schätzung 1]:[Schätzung 2]])=0,0,AVERAGE(TabAnforderungen[[#This Row],[Schätzung 1]:[Schätzung 2]]))","v":{"v":0,"d":"0.0"}},null,{"$f":"SUM(TabAnforderungen[[#This Row],[Schätzung netto]:[Reserve]])","v":{"v":0,"d":"0.0"}},{"$nulls":5},{"$f":"VLOOKUP(TabAnforderungen[[#This Row],[Status]],TabStati[],2,FALSE)","v":{"$error":"#N/A"}}]
[{"$nulls":33},{"$f":"IF(SUM(TabAnforderungen[[#This Row],[Schätzung 1]:[Schätzung 2]])=0,0,AVERAGE(TabAnforderungen[[#This Row],[Schätzung 1]:[Schätzung 2]]))","v":{"v":0,"d":"0.0"}},null,{"$f":"SUM(TabAnforderungen[[#This Row],[Schätzung netto]:[Reserve]])","v":{"v":0,"d":"0.0"}},{"$nulls":5},{"$f":"VLOOKUP(TabAnforderungen[[#This Row],[Status]],TabStati[],2,FALSE)","v":{"$error":"#N/A"}}]
[{"$nulls":33},{"$f":"IF(SUM(TabAnforderungen[[#This Row],[Schätzung 1]:[Schätzung 2]])=0,0,AVERAGE(TabAnforderungen[[#This Row],[Schätzung 1]:[Schätzung 2]]))","v":{"v":0,"d":"0.0"}},null,{"$f":"SUM(TabAnforderungen[[#This Row],[Schätzung netto]:[Reserve]])","v":{"v":0,"d":"0.0"}},{"$nulls":5},{"$f":"VLOOKUP(TabAnforderungen[[#This Row],[Status]],TabStati[],2,FALSE)","v":{"$error":"#N/A"}}]
[{"$nulls":33},{"$f":"IF(SUM(TabAnforderungen[[#This Row],[Schätzung 1]:[Schätzung 2]])=0,0,AVERAGE(TabAnforderungen[[#This Row],[Schätzung 1]:[Schätzung 2]]))","v":{"v":0,"d":"0.0"}},null,{"$f":"SUM(TabAnforderungen[[#This Row],[Schätzung netto]:[Reserve]])","v":{"v":0,"d":"0.0"}},{"$nulls":5},{"$f":"VLOOKUP(TabAnforderungen[[#This Row],[Status]],TabStati[],2,FALSE)","v":{"$error":"#N/A"}}]
[{"$nulls":33},{"$f":"IF(SUM(TabAnforderungen[[#This Row],[Schätzung 1]:[Schätzung 2]])=0,0,AVERAGE(TabAnforderungen[[#This Row],[Schätzung 1]:[Schätzung 2]]))","v":{"v":0,"d":"0.0"}},null,{"$f":"SUM(TabAnforderungen[[#This Row],[Schätzung netto]:[Reserve]])","v":{"v":0,"d":"0.0"}},{"$nulls":5},{"$f":"VLOOKUP(TabAnforderungen[[#This Row],[Status]],TabStati[],2,FALSE)","v":{"$error":"#N/A"}}]
[{"$nulls":33},{"$f":"IF(SUM(TabAnforderungen[[#This Row],[Schätzung 1]:[Schätzung 2]])=0,0,AVERAGE(TabAnforderungen[[#This Row],[Schätzung 1]:[Schätzung 2]]))","v":{"v":0,"d":"0.0"}},null,{"$f":"SUM(TabAnforderungen[[#This Row],[Schätzung netto]:[Reserve]])","v":{"v":0,"d":"0.0"}},{"$nulls":5},{"$f":"VLOOKUP(TabAnforderungen[[#This Row],[Status]],TabStati[],2,FALSE)","v":{"$error":"#N/A"}}]
[{"$nulls":33},{"$f":"IF(SUM(TabAnforderungen[[#This Row],[Schätzung 1]:[Schätzung 2]])=0,0,AVERAGE(TabAnforderungen[[#This Row],[Schätzung 1]:[Schätzung 2]]))","v":{"v":0,"d":"0.0"}},null,{"$f":"SUM(TabAnforderungen[[#This Row],[Schätzung netto]:[Reserve]])","v":{"v":0,"d":"0.0"}},{"$nulls":5},{"$f":"VLOOKUP(TabAnforderungen[[#This Row],[Status]],TabStati[],2,FALSE)","v":{"$error":"#N/A"}}]
[{"$nulls":33},{"$f":"IF(SUM(TabAnforderungen[[#This Row],[Schätzung 1]:[Schätzung 2]])=0,0,AVERAGE(TabAnforderungen[[#This Row],[Schätzung 1]:[Schätzung 2]]))","v":{"v":0,"d":"0.0"}},null,{"$f":"SUM(TabAnforderungen[[#This Row],[Schätzung netto]:[Reserve]])","v":{"v":0,"d":"0.0"}},{"$nulls":5},{"$f":"VLOOKUP(TabAnforderungen[[#This Row],[Status]],TabStati[],2,FALSE)","v":{"$error":"#N/A"}}]
[{"$nulls":33},{"$f":"IF(SUM(TabAnforderungen[[#This Row],[Schätzung 1]:[Schätzung 2]])=0,0,AVERAGE(TabAnforderungen[[#This Row],[Schätzung 1]:[Schätzung 2]]))","v":{"v":0,"d":"0.0"}},null,{"$f":"SUM(TabAnforderungen[[#This Row],[Schätzung netto]:[Reserve]])","v":{"v":0,"d":"0.0"}},{"$nulls":5},{"$f":"VLOOKUP(TabAnforderungen[[#This Row],[Status]],TabStati[],2,FALSE)","v":{"$error":"#N/A"}}]
[{"$nulls":33},{"$f":"IF(SUM(TabAnforderungen[[#This Row],[Schätzung 1]:[Schätzung 2]])=0,0,AVERAGE(TabAnforderungen[[#This Row],[Schätzung 1]:[Schätzung 2]]))","v":{"v":0,"d":"0.0"}},null,{"$f":"SUM(TabAnforderungen[[#This Row],[Schätzung netto]:[Reserve]])","v":{"v":0,"d":"0.0"}},{"$nulls":5},{"$f":"VLOOKUP(TabAnforderungen[[#This Row],[Status]],TabStati[],2,FALSE)","v":{"$error":"#N/A"}}]
[{"$nulls":33},{"$f":"IF(SUM(TabAnforderungen[[#This Row],[Schätzung 1]:[Schätzung 2]])=0,0,AVERAGE(TabAnforderungen[[#This Row],[Schätzung 1]:[Schätzung 2]]))","v":{"v":0,"d":"0.0"}},null,{"$f":"SUM(TabAnforderungen[[#This Row],[Schätzung netto]:[Reserve]])","v":{"v":0,"d":"0.0"}},{"$nulls":5},{"$f":"VLOOKUP(TabAnforderungen[[#This Row],[Status]],TabStati[],2,FALSE)","v":{"$error":"#N/A"}}]
[{"$nulls":33},{"$f":"IF(SUM(TabAnforderungen[[#This Row],[Schätzung 1]:[Schätzung 2]])=0,0,AVERAGE(TabAnforderungen[[#This Row],[Schätzung 1]:[Schätzung 2]]))","v":{"v":0,"d":"0.0"}},null,{"$f":"SUM(TabAnforderungen[[#This Row],[Schätzung netto]:[Reserve]])","v":{"v":0,"d":"0.0"}},{"$nulls":5},{"$f":"VLOOKUP(TabAnforderungen[[#This Row],[Status]],TabStati[],2,FALSE)","v":{"$error":"#N/A"}}]
[{"$nulls":33},{"$f":"IF(SUM(TabAnforderungen[[#This Row],[Schätzung 1]:[Schätzung 2]])=0,0,AVERAGE(TabAnforderungen[[#This Row],[Schätzung 1]:[Schätzung 2]]))","v":{"v":0,"d":"0.0"}},null,{"$f":"SUM(TabAnforderungen[[#This Row],[Schätzung netto]:[Reserve]])","v":{"v":0,"d":"0.0"}},{"$nulls":5},{"$f":"VLOOKUP(TabAnforderungen[[#This Row],[Status]],TabStati[],2,FALSE)","v":{"$error":"#N/A"}}]
[{"$nulls":33},{"$f":"IF(SUM(TabAnforderungen[[#This Row],[Schätzung 1]:[Schätzung 2]])=0,0,AVERAGE(TabAnforderungen[[#This Row],[Schätzung 1]:[Schätzung 2]]))","v":{"v":0,"d":"0.0"}},null,{"$f":"SUM(TabAnforderungen[[#This Row],[Schätzung netto]:[Reserve]])","v":{"v":0,"d":"0.0"}},{"$nulls":5},{"$f":"VLOOKUP(TabAnforderungen[[#This Row],[Status]],TabStati[],2,FALSE)","v":{"$error":"#N/A"}}]
[{"$nulls":33},{"$f":"IF(SUM(TabAnforderungen[[#This Row],[Schätzung 1]:[Schätzung 2]])=0,0,AVERAGE(TabAnforderungen[[#This Row],[Schätzung 1]:[Schätzung 2]]))","v":{"v":0,"d":"0.0"}},null,{"$f":"SUM(TabAnforderungen[[#This Row],[Schätzung netto]:[Reserve]])","v":{"v":0,"d":"0.0"}},{"$nulls":5},{"$f":"VLOOKUP(TabAnforderungen[[#This Row],[Status]],TabStati[],2,FALSE)","v":{"$error":"#N/A"}}]
[{"$nulls":33},{"$f":"IF(SUM(TabAnforderungen[[#This Row],[Schätzung 1]:[Schätzung 2]])=0,0,AVERAGE(TabAnforderungen[[#This Row],[Schätzung 1]:[Schätzung 2]]))","v":{"v":0,"d":"0.0"}},null,{"$f":"SUM(TabAnforderungen[[#This Row],[Schätzung netto]:[Reserve]])","v":{"v":0,"d":"0.0"}},{"$nulls":5},{"$f":"VLOOKUP(TabAnforderungen[[#This Row],[Status]],TabStati[],2,FALSE)","v":{"$error":"#N/A"}}]
[{"$nulls":33},{"$f":"IF(SUM(TabAnforderungen[[#This Row],[Schätzung 1]:[Schätzung 2]])=0,0,AVERAGE(TabAnforderungen[[#This Row],[Schätzung 1]:[Schätzung 2]]))","v":{"v":0,"d":"0.0"}},null,{"$f":"SUM(TabAnforderungen[[#This Row],[Schätzung netto]:[Reserve]])","v":{"v":0,"d":"0.0"}},{"$nulls":5},{"$f":"VLOOKUP(TabAnforderungen[[#This Row],[Status]],TabStati[],2,FALSE)","v":{"$error":"#N/A"}}]
[{"$nulls":33},{"$f":"IF(SUM(TabAnforderungen[[#This Row],[Schätzung 1]:[Schätzung 2]])=0,0,AVERAGE(TabAnforderungen[[#This Row],[Schätzung 1]:[Schätzung 2]]))","v":{"v":0,"d":"0.0"}},null,{"$f":"SUM(TabAnforderungen[[#This Row],[Schätzung netto]:[Reserve]])","v":{"v":0,"d":"0.0"}},{"$nulls":5},{"$f":"VLOOKUP(TabAnforderungen[[#This Row],[Status]],TabStati[],2,FALSE)","v":{"$error":"#N/A"}}]
[{"$nulls":33},{"$f":"IF(SUM(TabAnforderungen[[#This Row],[Schätzung 1]:[Schätzung 2]])=0,0,AVERAGE(TabAnforderungen[[#This Row],[Schätzung 1]:[Schätzung 2]]))","v":{"v":0,"d":"0.0"}},null,{"$f":"SUM(TabAnforderungen[[#This Row],[Schätzung netto]:[Reserve]])","v":{"v":0,"d":"0.0"}},{"$nulls":5},{"$f":"VLOOKUP(TabAnforderungen[[#This Row],[Status]],TabStati[],2,FALSE)","v":{"$error":"#N/A"}}]
[{"$nulls":33},{"$f":"IF(SUM(TabAnforderungen[[#This Row],[Schätzung 1]:[Schätzung 2]])=0,0,AVERAGE(TabAnforderungen[[#This Row],[Schätzung 1]:[Schätzung 2]]))","v":{"v":0,"d":"0.0"}},null,{"$f":"SUM(TabAnforderungen[[#This Row],[Schätzung netto]:[Reserve]])","v":{"v":0,"d":"0.0"}},{"$nulls":5},{"$f":"VLOOKUP(TabAnforderungen[[#This Row],[Status]],TabStati[],2,FALSE)","v":{"$error":"#N/A"}}]
[{"$nulls":33},{"$f":"IF(SUM(TabAnforderungen[[#This Row],[Schätzung 1]:[Schätzung 2]])=0,0,AVERAGE(TabAnforderungen[[#This Row],[Schätzung 1]:[Schätzung 2]]))","v":{"v":0,"d":"0.0"}},null,{"$f":"SUM(TabAnforderungen[[#This Row],[Schätzung netto]:[Reserve]])","v":{"v":0,"d":"0.0"}},{"$nulls":5},{"$f":"VLOOKUP(TabAnforderungen[[#This Row],[Status]],TabStati[],2,FALSE)","v":{"$error":"#N/A"}}]
[{"$nulls":33},{"$f":"IF(SUM(TabAnforderungen[[#This Row],[Schätzung 1]:[Schätzung 2]])=0,0,AVERAGE(TabAnforderungen[[#This Row],[Schätzung 1]:[Schätzung 2]]))","v":{"v":0,"d":"0.0"}},null,{"$f":"SUM(TabAnforderungen[[#This Row],[Schätzung netto]:[Reserve]])","v":{"v":0,"d":"0.0"}},{"$nulls":5},{"$f":"VLOOKUP(TabAnforderungen[[#This Row],[Status]],TabStati[],2,FALSE)","v":{"$error":"#N/A"}}]
[{"$nulls":33},{"$f":"IF(SUM(TabAnforderungen[[#This Row],[Schätzung 1]:[Schätzung 2]])=0,0,AVERAGE(TabAnforderungen[[#This Row],[Schätzung 1]:[Schätzung 2]]))","v":{"v":0,"d":"0.0"}},null,{"$f":"SUM(TabAnforderungen[[#This Row],[Schätzung netto]:[Reserve]])","v":{"v":0,"d":"0.0"}},{"$nulls":5},{"$f":"VLOOKUP(TabAnforderungen[[#This Row],[Status]],TabStati[],2,FALSE)","v":{"$error":"#N/A"}}]
[{"$nulls":33},{"$f":"IF(SUM(TabAnforderungen[[#This Row],[Schätzung 1]:[Schätzung 2]])=0,0,AVERAGE(TabAnforderungen[[#This Row],[Schätzung 1]:[Schätzung 2]]))","v":{"v":0,"d":"0.0"}},null,{"$f":"SUM(TabAnforderungen[[#This Row],[Schätzung netto]:[Reserve]])","v":{"v":0,"d":"0.0"}},{"$nulls":5},{"$f":"VLOOKUP(TabAnforderungen[[#This Row],[Status]],TabStati[],2,FALSE)","v":{"$error":"#N/A"}}]
[{"$nulls":33},{"$f":"IF(SUM(TabAnforderungen[[#This Row],[Schätzung 1]:[Schätzung 2]])=0,0,AVERAGE(TabAnforderungen[[#This Row],[Schätzung 1]:[Schätzung 2]]))","v":{"v":0,"d":"0.0"}},null,{"$f":"SUM(TabAnforderungen[[#This Row],[Schätzung netto]:[Reserve]])","v":{"v":0,"d":"0.0"}},{"$nulls":5},{"$f":"VLOOKUP(TabAnforderungen[[#This Row],[Status]],TabStati[],2,FALSE)","v":{"$error":"#N/A"}}]
[{"$nulls":33},{"$f":"IF(SUM(TabAnforderungen[[#This Row],[Schätzung 1]:[Schätzung 2]])=0,0,AVERAGE(TabAnforderungen[[#This Row],[Schätzung 1]:[Schätzung 2]]))","v":{"v":0,"d":"0.0"}},null,{"$f":"SUM(TabAnforderungen[[#This Row],[Schätzung netto]:[Reserve]])","v":{"v":0,"d":"0.0"}},{"$nulls":5},{"$f":"VLOOKUP(TabAnforderungen[[#This Row],[Status]],TabStati[],2,FALSE)","v":{"$error":"#N/A"}}]
[{"$nulls":33},{"$f":"IF(SUM(TabAnforderungen[[#This Row],[Schätzung 1]:[Schätzung 2]])=0,0,AVERAGE(TabAnforderungen[[#This Row],[Schätzung 1]:[Schätzung 2]]))","v":{"v":0,"d":"0.0"}},null,{"$f":"SUM(TabAnforderungen[[#This Row],[Schätzung netto]:[Reserve]])","v":{"v":0,"d":"0.0"}},{"$nulls":5},{"$f":"VLOOKUP(TabAnforderungen[[#This Row],[Status]],TabStati[],2,FALSE)","v":{"$error":"#N/A"}}]
[{"$nulls":33},{"$f":"IF(SUM(TabAnforderungen[[#This Row],[Schätzung 1]:[Schätzung 2]])=0,0,AVERAGE(TabAnforderungen[[#This Row],[Schätzung 1]:[Schätzung 2]]))","v":{"v":0,"d":"0.0"}},null,{"$f":"SUM(TabAnforderungen[[#This Row],[Schätzung netto]:[Reserve]])","v":{"v":0,"d":"0.0"}},{"$nulls":5},{"$f":"VLOOKUP(TabAnforderungen[[#This Row],[Status]],TabStati[],2,FALSE)","v":{"$error":"#N/A"}}]
[{"$nulls":33},{"$f":"IF(SUM(TabAnforderungen[[#This Row],[Schätzung 1]:[Schätzung 2]])=0,0,AVERAGE(TabAnforderungen[[#This Row],[Schätzung 1]:[Schätzung 2]]))","v":{"v":0,"d":"0.0"}},null,{"$f":"SUM(TabAnforderungen[[#This Row],[Schätzung netto]:[Reserve]])","v":{"v":0,"d":"0.0"}},{"$nulls":5},{"$f":"VLOOKUP(TabAnforderungen[[#This Row],[Status]],TabStati[],2,FALSE)","v":{"$error":"#N/A"}}]
[{"$nulls":33},{"$f":"IF(SUM(TabAnforderungen[[#This Row],[Schätzung 1]:[Schätzung 2]])=0,0,AVERAGE(TabAnforderungen[[#This Row],[Schätzung 1]:[Schätzung 2]]))","v":{"v":0,"d":"0.0"}},null,{"$f":"SUM(TabAnforderungen[[#This Row],[Schätzung netto]:[Reserve]])","v":{"v":0,"d":"0.0"}},{"$nulls":5},{"$f":"VLOOKUP(TabAnforderungen[[#This Row],[Status]],TabStati[],2,FALSE)","v":{"$error":"#N/A"}}]
[{"$nulls":33},{"$f":"IF(SUM(TabAnforderungen[[#This Row],[Schätzung 1]:[Schätzung 2]])=0,0,AVERAGE(TabAnforderungen[[#This Row],[Schätzung 1]:[Schätzung 2]]))","v":{"v":0,"d":"0.0"}},null,{"$f":"SUM(TabAnforderungen[[#This Row],[Schätzung netto]:[Reserve]])","v":{"v":0,"d":"0.0"}},{"$nulls":5},{"$f":"VLOOKUP(TabAnforderungen[[#This Row],[Status]],TabStati[],2,FALSE)","v":{"$error":"#N/A"}}]
[{"$nulls":33},{"$f":"IF(SUM(TabAnforderungen[[#This Row],[Schätzung 1]:[Schätzung 2]])=0,0,AVERAGE(TabAnforderungen[[#This Row],[Schätzung 1]:[Schätzung 2]]))","v":{"v":0,"d":"0.0"}},null,{"$f":"SUM(TabAnforderungen[[#This Row],[Schätzung netto]:[Reserve]])","v":{"v":0,"d":"0.0"}},{"$nulls":5},{"$f":"VLOOKUP(TabAnforderungen[[#This Row],[Status]],TabStati[],2,FALSE)","v":{"$error":"#N/A"}}]
[{"$nulls":33},{"$f":"IF(SUM(TabAnforderungen[[#This Row],[Schätzung 1]:[Schätzung 2]])=0,0,AVERAGE(TabAnforderungen[[#This Row],[Schätzung 1]:[Schätzung 2]]))","v":{"v":0,"d":"0.0"}},null,{"$f":"SUM(TabAnforderungen[[#This Row],[Schätzung netto]:[Reserve]])","v":{"v":0,"d":"0.0"}},{"$nulls":5},{"$f":"VLOOKUP(TabAnforderungen[[#This Row],[Status]],TabStati[],2,FALSE)","v":{"$error":"#N/A"}}]
[{"$nulls":33},{"$f":"IF(SUM(TabAnforderungen[[#This Row],[Schätzung 1]:[Schätzung 2]])=0,0,AVERAGE(TabAnforderungen[[#This Row],[Schätzung 1]:[Schätzung 2]]))","v":{"v":0,"d":"0.0"}},null,{"$f":"SUM(TabAnforderungen[[#This Row],[Schätzung netto]:[Reserve]])","v":{"v":0,"d":"0.0"}},{"$nulls":5},{"$f":"VLOOKUP(TabAnforderungen[[#This Row],[Status]],TabStati[],2,FALSE)","v":{"$error":"#N/A"}}]
[{"$nulls":33},{"$f":"IF(SUM(TabAnforderungen[[#This Row],[Schätzung 1]:[Schätzung 2]])=0,0,AVERAGE(TabAnforderungen[[#This Row],[Schätzung 1]:[Schätzung 2]]))","v":{"v":0,"d":"0.0"}},null,{"$f":"SUM(TabAnforderungen[[#This Row],[Schätzung netto]:[Reserve]])","v":{"v":0,"d":"0.0"}},{"$nulls":5},{"$f":"VLOOKUP(TabAnforderungen[[#This Row],[Status]],TabStati[],2,FALSE)","v":{"$error":"#N/A"}}]
[{"$nulls":33},{"$f":"IF(SUM(TabAnforderungen[[#This Row],[Schätzung 1]:[Schätzung 2]])=0,0,AVERAGE(TabAnforderungen[[#This Row],[Schätzung 1]:[Schätzung 2]]))","v":{"v":0,"d":"0.0"}},null,{"$f":"SUM(TabAnforderungen[[#This Row],[Schätzung netto]:[Reserve]])","v":{"v":0,"d":"0.0"}},{"$nulls":5},{"$f":"VLOOKUP(TabAnforderungen[[#This Row],[Status]],TabStati[],2,FALSE)","v":{"$error":"#N/A"}}]
[{"$nulls":33},{"$f":"IF(SUM(TabAnforderungen[[#This Row],[Schätzung 1]:[Schätzung 2]])=0,0,AVERAGE(TabAnforderungen[[#This Row],[Schätzung 1]:[Schätzung 2]]))","v":{"v":0,"d":"0.0"}},null,{"$f":"SUM(TabAnforderungen[[#This Row],[Schätzung netto]:[Reserve]])","v":{"v":0,"d":"0.0"}},{"$nulls":5},{"$f":"VLOOKUP(TabAnforderungen[[#This Row],[Status]],TabStati[],2,FALSE)","v":{"$error":"#N/A"}}]
[{"$nulls":33},{"$f":"IF(SUM(TabAnforderungen[[#This Row],[Schätzung 1]:[Schätzung 2]])=0,0,AVERAGE(TabAnforderungen[[#This Row],[Schätzung 1]:[Schätzung 2]]))","v":{"v":0,"d":"0.0"}},null,{"$f":"SUM(TabAnforderungen[[#This Row],[Schätzung netto]:[Reserve]])","v":{"v":0,"d":"0.0"}},{"$nulls":5},{"$f":"VLOOKUP(TabAnforderungen[[#This Row],[Status]],TabStati[],2,FALSE)","v":{"$error":"#N/A"}}]
[{"$nulls":33},{"$f":"IF(SUM(TabAnforderungen[[#This Row],[Schätzung 1]:[Schätzung 2]])=0,0,AVERAGE(TabAnforderungen[[#This Row],[Schätzung 1]:[Schätzung 2]]))","v":{"v":0,"d":"0.0"}},null,{"$f":"SUM(TabAnforderungen[[#This Row],[Schätzung netto]:[Reserve]])","v":{"v":0,"d":"0.0"}},{"$nulls":5},{"$f":"VLOOKUP(TabAnforderungen[[#This Row],[Status]],TabStati[],2,FALSE)","v":{"$error":"#N/A"}}]
[{"$nulls":33},{"$f":"IF(SUM(TabAnforderungen[[#This Row],[Schätzung 1]:[Schätzung 2]])=0,0,AVERAGE(TabAnforderungen[[#This Row],[Schätzung 1]:[Schätzung 2]]))","v":{"v":0,"d":"0.0"}},null,{"$f":"SUM(TabAnforderungen[[#This Row],[Schätzung netto]:[Reserve]])","v":{"v":0,"d":"0.0"}},{"$nulls":5},{"$f":"VLOOKUP(TabAnforderungen[[#This Row],[Status]],TabStati[],2,FALSE)","v":{"$error":"#N/A"}}]
[{"$nulls":33},{"$f":"IF(SUM(TabAnforderungen[[#This Row],[Schätzung 1]:[Schätzung 2]])=0,0,AVERAGE(TabAnforderungen[[#This Row],[Schätzung 1]:[Schätzung 2]]))","v":{"v":0,"d":"0.0"}},null,{"$f":"SUM(TabAnforderungen[[#This Row],[Schätzung netto]:[Reserve]])","v":{"v":0,"d":"0.0"}},{"$nulls":5},{"$f":"VLOOKUP(TabAnforderungen[[#This Row],[Status]],TabStati[],2,FALSE)","v":{"$error":"#N/A"}}]
[{"$nulls":33},{"$f":"IF(SUM(TabAnforderungen[[#This Row],[Schätzung 1]:[Schätzung 2]])=0,0,AVERAGE(TabAnforderungen[[#This Row],[Schätzung 1]:[Schätzung 2]]))","v":{"v":0,"d":"0.0"}},null,{"$f":"SUM(TabAnforderungen[[#This Row],[Schätzung netto]:[Reserve]])","v":{"v":0,"d":"0.0"}},{"$nulls":5},{"$f":"VLOOKUP(TabAnforderungen[[#This Row],[Status]],TabStati[],2,FALSE)","v":{"$error":"#N/A"}}]
[{"$nulls":33},{"$f":"IF(SUM(TabAnforderungen[[#This Row],[Schätzung 1]:[Schätzung 2]])=0,0,AVERAGE(TabAnforderungen[[#This Row],[Schätzung 1]:[Schätzung 2]]))","v":{"v":0,"d":"0.0"}},null,{"$f":"SUM(TabAnforderungen[[#This Row],[Schätzung netto]:[Reserve]])","v":{"v":0,"d":"0.0"}},{"$nulls":5},{"$f":"VLOOKUP(TabAnforderungen[[#This Row],[Status]],TabStati[],2,FALSE)","v":{"$error":"#N/A"}}]
[{"$nulls":33},{"$f":"IF(SUM(TabAnforderungen[[#This Row],[Schätzung 1]:[Schätzung 2]])=0,0,AVERAGE(TabAnforderungen[[#This Row],[Schätzung 1]:[Schätzung 2]]))","v":{"v":0,"d":"0.0"}},null,{"$f":"SUM(TabAnforderungen[[#This Row],[Schätzung netto]:[Reserve]])","v":{"v":0,"d":"0.0"}},{"$nulls":5},{"$f":"VLOOKUP(TabAnforderungen[[#This Row],[Status]],TabStati[],2,FALSE)","v":{"$error":"#N/A"}}]
[{"$nulls":33},{"$f":"IF(SUM(TabAnforderungen[[#This Row],[Schätzung 1]:[Schätzung 2]])=0,0,AVERAGE(TabAnforderungen[[#This Row],[Schätzung 1]:[Schätzung 2]]))","v":{"v":0,"d":"0.0"}},null,{"$f":"SUM(TabAnforderungen[[#This Row],[Schätzung netto]:[Reserve]])","v":{"v":0,"d":"0.0"}},{"$nulls":5},{"$f":"VLOOKUP(TabAnforderungen[[#This Row],[Status]],TabStati[],2,FALSE)","v":{"$error":"#N/A"}}]
[{"$nulls":33},{"$f":"IF(SUM(TabAnforderungen[[#This Row],[Schätzung 1]:[Schätzung 2]])=0,0,AVERAGE(TabAnforderungen[[#This Row],[Schätzung 1]:[Schätzung 2]]))","v":{"v":0,"d":"0.0"}},null,{"$f":"SUM(TabAnforderungen[[#This Row],[Schätzung netto]:[Reserve]])","v":{"v":0,"d":"0.0"}},{"$nulls":5},{"$f":"VLOOKUP(TabAnforderungen[[#This Row],[Status]],TabStati[],2,FALSE)","v":{"$error":"#N/A"}}]
[{"$nulls":33},{"$f":"IF(SUM(TabAnforderungen[[#This Row],[Schätzung 1]:[Schätzung 2]])=0,0,AVERAGE(TabAnforderungen[[#This Row],[Schätzung 1]:[Schätzung 2]]))","v":{"v":0,"d":"0.0"}},null,{"$f":"SUM(TabAnforderungen[[#This Row],[Schätzung netto]:[Reserve]])","v":{"v":0,"d":"0.0"}},{"$nulls":5},{"$f":"VLOOKUP(TabAnforderungen[[#This Row],[Status]],TabStati[],2,FALSE)","v":{"$error":"#N/A"}}]
[{"$nulls":33},{"$f":"IF(SUM(TabAnforderungen[[#This Row],[Schätzung 1]:[Schätzung 2]])=0,0,AVERAGE(TabAnforderungen[[#This Row],[Schätzung 1]:[Schätzung 2]]))","v":{"v":0,"d":"0.0"}},null,{"$f":"SUM(TabAnforderungen[[#This Row],[Schätzung netto]:[Reserve]])","v":{"v":0,"d":"0.0"}},{"$nulls":5},{"$f":"VLOOKUP(TabAnforderungen[[#This Row],[Status]],TabStati[],2,FALSE)","v":{"$error":"#N/A"}}]
[{"$nulls":33},{"$f":"IF(SUM(TabAnforderungen[[#This Row],[Schätzung 1]:[Schätzung 2]])=0,0,AVERAGE(TabAnforderungen[[#This Row],[Schätzung 1]:[Schätzung 2]]))","v":{"v":0,"d":"0.0"}},null,{"$f":"SUM(TabAnforderungen[[#This Row],[Schätzung netto]:[Reserve]])","v":{"v":0,"d":"0.0"}},{"$nulls":5},{"$f":"VLOOKUP(TabAnforderungen[[#This Row],[Status]],TabStati[],2,FALSE)","v":{"$error":"#N/A"}}]
[{"$nulls":33},{"$f":"IF(SUM(TabAnforderungen[[#This Row],[Schätzung 1]:[Schätzung 2]])=0,0,AVERAGE(TabAnforderungen[[#This Row],[Schätzung 1]:[Schätzung 2]]))","v":{"v":0,"d":"0.0"}},null,{"$f":"SUM(TabAnforderungen[[#This Row],[Schätzung netto]:[Reserve]])","v":{"v":0,"d":"0.0"}},{"$nulls":5},{"$f":"VLOOKUP(TabAnforderungen[[#This Row],[Status]],TabStati[],2,FALSE)","v":{"$error":"#N/A"}}]
[{"$nulls":33},{"$f":"IF(SUM(TabAnforderungen[[#This Row],[Schätzung 1]:[Schätzung 2]])=0,0,AVERAGE(TabAnforderungen[[#This Row],[Schätzung 1]:[Schätzung 2]]))","v":{"v":0,"d":"0.0"}},null,{"$f":"SUM(TabAnforderungen[[#This Row],[Schätzung netto]:[Reserve]])","v":{"v":0,"d":"0.0"}},{"$nulls":5},{"$f":"VLOOKUP(TabAnforderungen[[#This Row],[Status]],TabStati[],2,FALSE)","v":{"$error":"#N/A"}}]
[{"$nulls":33},{"$f":"IF(SUM(TabAnforderungen[[#This Row],[Schätzung 1]:[Schätzung 2]])=0,0,AVERAGE(TabAnforderungen[[#This Row],[Schätzung 1]:[Schätzung 2]]))","v":{"v":0,"d":"0.0"}},null,{"$f":"SUM(TabAnforderungen[[#This Row],[Schätzung netto]:[Reserve]])","v":{"v":0,"d":"0.0"}},{"$nulls":5},{"$f":"VLOOKUP(TabAnforderungen[[#This Row],[Status]],TabStati[],2,FALSE)","v":{"$error":"#N/A"}}]
[{"$nulls":33},{"$f":"IF(SUM(TabAnforderungen[[#This Row],[Schätzung 1]:[Schätzung 2]])=0,0,AVERAGE(TabAnforderungen[[#This Row],[Schätzung 1]:[Schätzung 2]]))","v":{"v":0,"d":"0.0"}},null,{"$f":"SUM(TabAnforderungen[[#This Row],[Schätzung netto]:[Reserve]])","v":{"v":0,"d":"0.0"}},{"$nulls":5},{"$f":"VLOOKUP(TabAnforderungen[[#This Row],[Status]],TabStati[],2,FALSE)","v":{"$error":"#N/A"}}]

{"sheet":"Auswertungen nach  Stati","index":3,"n_rows":164,"n_cols":16,"rows_kept":164,"merged":[[3,2,3,8],[3,12,3,15],[5,0,8,0],[5,10,11,10],[35,2,35,8],[35,12,35,14],[37,0,39,0],[37,10,43,10],[65,2,65,8],[65,12,65,14],[67,0,69,0],[67,10,73,10],[95,2,95,8],[95,12,95,14],[97,0,100,0],[97,10,103,10],[126,2,126,8],[126,12,126,14],[128,0,131,0],[128,10,134,10],[156,0,163,0],[156,10,163,10]]}
[]
[]
[]
[null,null,"Anforderungsstatus",{"$nulls":9},"erwarteter Nutzen "]
[null,null,"beantragt","unvollständig","akzeptiert","analysiert","Lösung spezifiziert","umgesetzt","geprüft",{"$nulls":3},"1-sehr hoch","2-hoch","3-mittel","4-tief"]
["Erwarteter Nutzen","4-tief",{"$f":"COUNTIFS(TabAnforderungen[Status],C$5,TabAnforderungen[Erwarteter Nutzen],$B6)","v":0},{"$f":"COUNTIFS(TabAnforderungen[Status],D$5,TabAnforderungen[Erwarteter Nutzen],$B6)","v":1},{"$f":"COUNTIFS(TabAnforderungen[Status],E$5,TabAnforderungen[Erwarteter Nutzen],$B6)","v":0},{"$f":"COUNTIFS(TabAnforderungen[Status],F$5,TabAnforderungen[Erwarteter Nutzen],$B6)","v":1},{"$f":"COUNTIFS(TabAnforderungen[Status],G$5,TabAnforderungen[Erwarteter Nutzen],$B6)","v":1},{"$f":"COUNTIFS(TabAnforderungen[Status],H$5,TabAnforderungen[Erwarteter Nutzen],$B6)","v":0},{"$f":"COUNTIFS(TabAnforderungen[Status],I$5,TabAnforderungen[Erwarteter Nutzen],$B6)","v":0},null,"Anforderungs-status ","beantragt",{"$f":"COUNTIFS(TabAnforderungen[Status],$L6,TabAnforderungen[Erwarteter Nutzen],M$5)","v":2},{"$f":"COUNTIFS(TabAnforderungen[Status],$L6,TabAnforderungen[Erwarteter Nutzen],N$5)","v":2},{"$f":"COUNTIFS(TabAnforderungen[Status],$L6,TabAnforderungen[Erwarteter Nutzen],O$5)","v":1},{"$f":"COUNTIFS(TabAnforderungen[Status],$L6,TabAnforderungen[Erwarteter Nutzen],P$5)","v":0}]
[null,"3-mittel",{"$f":"COUNTIFS(TabAnforderungen[Status],C$5,TabAnforderungen[Erwarteter Nutzen],$B7)","v":1},{"$f":"COUNTIFS(TabAnforderungen[Status],D$5,TabAnforderungen[Erwarteter Nutzen],$B7)","v":0},{"$f":"COUNTIFS(TabAnforderungen[Status],E$5,TabAnforderungen[Erwarteter Nutzen],$B7)","v":2},{"$f":"COUNTIFS(TabAnforderungen[Status],F$5,TabAnforderungen[Erwarteter Nutzen],$B7)","v":1},{"$f":"COUNTIFS(TabAnforderungen[Status],G$5,TabAnforderungen[Erwarteter Nutzen],$B7)","v":1},{"$f":"COUNTIFS(TabAnforderungen[Status],H$5,TabAnforderungen[Erwarteter Nutzen],$B7)","v":0},{"$f":"COUNTIFS(TabAnforderungen[Status],I$5,TabAnforderungen[Erwarteter Nutzen],$B7)","v":0},null,null,"unvollständig",{"$f":"COUNTIFS(TabAnforderungen[Status],$L7,TabAnforderungen[Erwarteter Nutzen],M$5)","v":1},{"$f":"COUNTIFS(TabAnforderungen[Status],$L7,TabAnforderungen[Erwarteter Nutzen],N$5)","v":0},{"$f":"COUNTIFS(TabAnforderungen[Status],$L7,TabAnforderungen[Erwarteter Nutzen],O$5)","v":0},{"$f":"COUNTIFS(TabAnforderungen[Status],$L7,TabAnforderungen[Erwarteter Nutzen],P$5)","v":1}]
[null,"2-hoch",{"$f":"COUNTIFS(TabAnforderungen[Status],C$5,TabAnforderungen[Erwarteter Nutzen],$B8)","v":2},{"$f":"COUNTIFS(TabAnforderungen[Status],D$5,TabAnforderungen[Erwarteter Nutzen],$B8)","v":0},{"$f":"COUNTIFS(TabAnforderungen[Status],E$5,TabAnforderungen[Erwarteter Nutzen],$B8)","v":1},{"$f":"COUNTIFS(TabAnforderungen[Status],F$5,TabAnforderungen[Erwarteter Nutzen],$B8)","v":0},{"$f":"COUNTIFS(TabAnforderungen[Status],G$5,TabAnforderungen[Erwarteter Nutzen],$B8)","v":1},{"$f":"COUNTIFS(TabAnforderungen[Status],H$5,TabAnforderungen[Erwarteter Nutzen],$B8)","v":1},{"$f":"COUNTIFS(TabAnforderungen[Status],I$5,TabAnforderungen[Erwarteter Nutzen],$B8)","v":2},null,null,"akzeptiert",{"$f":"COUNTIFS(TabAnforderungen[Status],$L8,TabAnforderungen[Erwarteter Nutzen],M$5)","v":1},{"$f":"COUNTIFS(TabAnforderungen[Status],$L8,TabAnforderungen[Erwarteter Nutzen],N$5)","v":1},{"$f":"COUNTIFS(TabAnforderungen[Status],$L8,TabAnforderungen[Erwarteter Nutzen],O$5)","v":2},{"$f":"COUNTIFS(TabAnforderungen[Status],$L8,TabAnforderungen[Erwarteter Nutzen],P$5)","v":0}]
[null,"1-sehr hoch",{"$f":"COUNTIFS(TabAnforderungen[Status],C$5,TabAnforderungen[Erwarteter Nutzen],$B9)","v":2},{"$f":"COUNTIFS(TabAnforderungen[Status],D$5,TabAnforderungen[Erwarteter Nutzen],$B9)","v":1},{"$f":"COUNTIFS(TabAnforderungen[Status],E$5,TabAnforderungen[Erwarteter Nutzen],$B9)","v":1},{"$f":"COUNTIFS(TabAnforderungen[Status],F$5,TabAnforderungen[Erwarteter Nutzen],$B9)","v":2},{"$f":"COUNTIFS(TabAnforderungen[Status],G$5,TabAnforderungen[Erwarteter Nutzen],$B9)","v":2},{"$f":"COUNTIFS(TabAnforderungen[Status],H$5,TabAnforderungen[Erwarteter Nutzen],$B9)","v":0},{"$f":"COUNTIFS(TabAnforderungen[Status],I$5,TabAnforderungen[Erwarteter Nutzen],$B9)","v":0},null,null,"analysiert",{"$f":"COUNTIFS(TabAnforderungen[Status],$L9,TabAnforderungen[Erwarteter Nutzen],M$5)","v":2},{"$f":"COUNTIFS(TabAnforderungen[Status],$L9,TabAnforderungen[Erwarteter Nutzen],N$5)","v":0},{"$f":"COUNTIFS(TabAnforderungen[Status],$L9,TabAnforderungen[Erwarteter Nutzen],O$5)","v":1},{"$f":"COUNTIFS(TabAnforderungen[Status],$L9,TabAnforderungen[Erwarteter Nutzen],P$5)","v":1}]
[{"$nulls":11},"Lösung spezifiziert",{"$f":"COUNTIFS(TabAnforderungen[Status],$L10,TabAnforderungen[Erwarteter Nutzen],M$5)","v":2},{"$f":"COUNTIFS(TabAnforderungen[Status],$L10,TabAnforderungen[Erwarteter Nutzen],N$5)","v":1},{"$f":"COUNTIFS(TabAnforderungen[Status],$L10,TabAnforderungen[Erwarteter Nutzen],O$5)","v":1},{"$f":"COUNTIFS(TabAnforderungen[Status],$L10,TabAnforderungen[Erwarteter Nutzen],P$5)","v":1}]
[{"$nulls":11},"umgesetzt",{"$f":"COUNTIFS(TabAnforderungen[Status],$L11,TabAnforderungen[Erwarteter Nutzen],M$5)","v":0},{"$f":"COUNTIFS(TabAnforderungen[Status],$L11,TabAnforderungen[Erwarteter Nutzen],N$5)","v":1},{"$f":"COUNTIFS(TabAnforderungen[Status],$L11,TabAnforderungen[Erwarteter Nutzen],O$5)","v":0},{"$f":"COUNTIFS(TabAnforderungen[Status],$L11,TabAnforderungen[Erwarteter Nutzen],P$5)","v":0}]
[{"$nulls":11},"geprüft",{"$f":"COUNTIFS(TabAnforderungen[Status],$L12,TabAnforderungen[Erwarteter Nutzen],M$5)","v":0},{"$f":"COUNTIFS(TabAnforderungen[Status],$L12,TabAnforderungen[Erwarteter Nutzen],N$5)","v":2},{"$f":"COUNTIFS(TabAnforderungen[Status],$L12,TabAnforderungen[Erwarteter Nutzen],O$5)","v":0},{"$f":"COUNTIFS(TabAnforderungen[Status],$L12,TabAnforderungen[Erwarteter Nutzen],P$5)","v":0}]
{"$rows_empty":23}
[null,null,"Anforderungsstatus",{"$nulls":9},"Komplexität"]
[null,null,"beantragt","unvollständig","akzeptiert","analysiert","Lösung spezifiziert","umgesetzt","geprüft",{"$nulls":3},"1-sehr hoch","2-hoch","3-mittel","4-tief"]
["Komplexität","4-tief",{"$f":"COUNTIFS(TabAnforderungen[Komplexität],$B38,TabAnforderungen[Status],C$37)","v":1},{"$f":"COUNTIFS(TabAnforderungen[Komplexität],$B38,TabAnforderungen[Status],D$37)","v":0},{"$f":"COUNTIFS(TabAnforderungen[Komplexität],$B38,TabAnforderungen[Status],E$37)","v":0},{"$f":"COUNTIFS(TabAnforderungen[Komplexität],$B38,TabAnforderungen[Status],F$37)","v":1},{"$f":"COUNTIFS(TabAnforderungen[Komplexität],$B38,TabAnforderungen[Status],G$37)","v":2},{"$f":"COUNTIFS(TabAnforderungen[Komplexität],$B38,TabAnforderungen[Status],H$37)","v":0},{"$f":"COUNTIFS(TabAnforderungen[Komplexität],$B38,TabAnforderungen[Status],I$37)","v":0},null,"Anforderungs-status ","beantragt",{"$f":"COUNTIFS(TabAnforderungen[Komplexität],M$37,TabAnforderungen[Status],$L38)","v":1},{"$f":"COUNTIFS(TabAnforderungen[Komplexität],N$37,TabAnforderungen[Status],$L38)","v":1},{"$f":"COUNTIFS(TabAnforderungen[Komplexität],O$37,TabAnforderungen[Status],$L38)","v":2},{"$f":"COUNTIFS(TabAnforderungen[Komplexität],P$37,TabAnforderungen[Status],$L38)","v":1}]
[null,"3-mittel",{"$f":"COUNTIFS(TabAnforderungen[Komplexität],$B39,TabAnforderungen[Status],C$37)","v":2},{"$f":"COUNTIFS(TabAnforderungen[Komplexität],$B39,TabAnforderungen[Status],D$37)","v":0},{"$f":"COUNTIFS(TabAnforderungen[Komplexität],$B39,TabAnforderungen[Status],E$37)","v":1},{"$f":"COUNTIFS(TabAnforderungen[Komplexität],$B39,TabAnforderungen[Status],F$37)","v":1},{"$f":"COUNTIFS(TabAnforderungen[Komplexität],$B39,TabAnforderungen[Status],G$37)","v":1},{"$f":"COUNTIFS(TabAnforderungen[Komplexität],$B39,TabAnforderungen[Status],H$37)","v":0},{"$f":"COUNTIFS(TabAnforderungen[Komplexität],$B39,TabAnforderungen[Status],I$37)","v":0},null,null,"unvollständig",{"$f":"COUNTIFS(TabAnforderungen[Komplexität],M$37,TabAnforderungen[Status],$L39)","v":2},{"$f":"COUNTIFS(TabAnforderungen[Komplexität],N$37,TabAnforderungen[Status],$L39)","v":0},{"$f":"COUNTIFS(TabAnforderungen[Komplexität],O$37,TabAnforderungen[Status],$L39)","v":0},{"$f":"COUNTIFS(TabAnforderungen[Komplexität],P$37,TabAnforderungen[Status],$L39)","v":0}]
[null,"2-hoch",{"$f":"COUNTIFS(TabAnforderungen[Komplexität],$B40,TabAnforderungen[Status],C$37)","v":1},{"$f":"COUNTIFS(TabAnforderungen[Komplexität],$B40,TabAnforderungen[Status],D$37)","v":0},{"$f":"COUNTIFS(TabAnforderungen[Komplexität],$B40,TabAnforderungen[Status],E$37)","v":3},{"$f":"COUNTIFS(TabAnforderungen[Komplexität],$B40,TabAnforderungen[Status],F$37)","v":0},{"$f":"COUNTIFS(TabAnforderungen[Komplexität],$B40,TabAnforderungen[Status],G$37)","v":0},{"$f":"COUNTIFS(TabAnforderungen[Komplexität],$B40,TabAnforderungen[Status],H$37)","v":1},{"$f":"COUNTIFS(TabAnforderungen[Komplexität],$B40,TabAnforderungen[Status],I$37)","v":1},null,null,"akzeptiert",{"$f":"COUNTIFS(TabAnforderungen[Komplexität],M$37,TabAnforderungen[Status],$L40)","v":0},{"$f":"COUNTIFS(TabAnforderungen[Komplexität],N$37,TabAnforderungen[Status],$L40)","v":3},{"$f":"COUNTIFS(TabAnforderungen[Komplexität],O$37,TabAnforderungen[Status],$L40)","v":1},{"$f":"COUNTIFS(TabAnforderungen[Komplexität],P$37,TabAnforderungen[Status],$L40)","v":0}]
[null,"1-sehr hoch",{"$f":"COUNTIFS(TabAnforderungen[Komplexität],$B41,TabAnforderungen[Status],C$37)","v":1},{"$f":"COUNTIFS(TabAnforderungen[Komplexität],$B41,TabAnforderungen[Status],D$37)","v":2},{"$f":"COUNTIFS(TabAnforderungen[Komplexität],$B41,TabAnforderungen[Status],E$37)","v":0},{"$f":"COUNTIFS(TabAnforderungen[Komplexität],$B41,TabAnforderungen[Status],F$37)","v":2},{"$f":"COUNTIFS(TabAnforderungen[Komplexität],$B41,TabAnforderungen[Status],G$37)","v":2},{"$f":"COUNTIFS(TabAnforderungen[Komplexität],$B41,TabAnforderungen[Status],H$37)","v":0},{"$f":"COUNTIFS(TabAnforderungen[Komplexität],$B41,TabAnforderungen[Status],I$37)","v":1},null,null,"analysiert",{"$f":"COUNTIFS(TabAnforderungen[Komplexität],M$37,TabAnforderungen[Status],$L41)","v":2},{"$f":"COUNTIFS(TabAnforderungen[Komplexität],N$37,TabAnforderungen[Status],$L41)","v":0},{"$f":"COUNTIFS(TabAnforderungen[Komplexität],O$37,TabAnforderungen[Status],$L41)","v":1},{"$f":"COUNTIFS(TabAnforderungen[Komplexität],P$37,TabAnforderungen[Status],$L41)","v":1}]
[{"$nulls":11},"Lösung spezifiziert",{"$f":"COUNTIFS(TabAnforderungen[Komplexität],M$37,TabAnforderungen[Status],$L42)","v":2},{"$f":"COUNTIFS(TabAnforderungen[Komplexität],N$37,TabAnforderungen[Status],$L42)","v":0},{"$f":"COUNTIFS(TabAnforderungen[Komplexität],O$37,TabAnforderungen[Status],$L42)","v":1},{"$f":"COUNTIFS(TabAnforderungen[Komplexität],P$37,TabAnforderungen[Status],$L42)","v":2}]
[{"$nulls":11},"umgesetzt",{"$f":"COUNTIFS(TabAnforderungen[Komplexität],M$37,TabAnforderungen[Status],$L43)","v":0},{"$f":"COUNTIFS(TabAnforderungen[Komplexität],N$37,TabAnforderungen[Status],$L43)","v":1},{"$f":"COUNTIFS(TabAnforderungen[Komplexität],O$37,TabAnforderungen[Status],$L43)","v":0},{"$f":"COUNTIFS(TabAnforderungen[Komplexität],P$37,TabAnforderungen[Status],$L43)","v":0}]
[{"$nulls":11},"geprüft",{"$f":"COUNTIFS(TabAnforderungen[Komplexität],M$37,TabAnforderungen[Status],$L44)","v":1},{"$f":"COUNTIFS(TabAnforderungen[Komplexität],N$37,TabAnforderungen[Status],$L44)","v":1},{"$f":"COUNTIFS(TabAnforderungen[Komplexität],O$37,TabAnforderungen[Status],$L44)","v":0},{"$f":"COUNTIFS(TabAnforderungen[Komplexität],P$37,TabAnforderungen[Status],$L44)","v":0}]
{"$rows_empty":21}
[null,null,"Anforderungsstatus",{"$nulls":9},"Dringlichkeit"]
[null,null,"beantragt","unvollständig","akzeptiert","analysiert","Lösung spezifiziert","umgesetzt","geprüft",{"$nulls":3},"1-hoch","2-mittel","3-gering"]
["Dringlich-keit","3-gering",{"$f":"COUNTIFS(TabAnforderungen[Dringlichkeit],$B68,TabAnforderungen[Status],C$67)","v":2},{"$f":"COUNTIFS(TabAnforderungen[Dringlichkeit],$B68,TabAnforderungen[Status],D$67)","v":0},{"$f":"COUNTIFS(TabAnforderungen[Dringlichkeit],$B68,TabAnforderungen[Status],E$67)","v":0},{"$f":"COUNTIFS(TabAnforderungen[Dringlichkeit],$B68,TabAnforderungen[Status],F$67)","v":1},{"$f":"COUNTIFS(TabAnforderungen[Dringlichkeit],$B68,TabAnforderungen[Status],G$67)","v":2},{"$f":"COUNTIFS(TabAnforderungen[Dringlichkeit],$B68,TabAnforderungen[Status],H$67)","v":0},{"$f":"COUNTIFS(TabAnforderungen[Dringlichkeit],$B68,TabAnforderungen[Status],I$67)","v":0},null,"Anforderungs-status ","beantragt",{"$f":"COUNTIFS(TabAnforderungen[Dringlichkeit],M$67,TabAnforderungen[Status],$L68)","v":2},{"$f":"COUNTIFS(TabAnforderungen[Dringlichkeit],N$67,TabAnforderungen[Status],$L68)","v":1},{"$f":"COUNTIFS(TabAnforderungen[Dringlichkeit],O$67,TabAnforderungen[Status],$L68)","v":2}]
[null,"2-mittel",{"$f":"COUNTIFS(TabAnforderungen[Dringlichkeit],$B69,TabAnforderungen[Status],C$67)","v":1},{"$f":"COUNTIFS(TabAnforderungen[Dringlichkeit],$B69,TabAnforderungen[Status],D$67)","v":1},{"$f":"COUNTIFS(TabAnforderungen[Dringlichkeit],$B69,TabAnforderungen[Status],E$67)","v":3},{"$f":"COUNTIFS(TabAnforderungen[Dringlichkeit],$B69,TabAnforderungen[Status],F$67)","v":0},{"$f":"COUNTIFS(TabAnforderungen[Dringlichkeit],$B69,TabAnforderungen[Status],G$67)","v":1},{"$f":"COUNTIFS(TabAnforderungen[Dringlichkeit],$B69,TabAnforderungen[Status],H$67)","v":1},{"$f":"COUNTIFS(TabAnforderungen[Dringlichkeit],$B69,TabAnforderungen[Status],I$67)","v":1},null,null,"unvollständig",{"$f":"COUNTIFS(TabAnforderungen[Dringlichkeit],M$67,TabAnforderungen[Status],$L69)","v":1},{"$f":"COUNTIFS(TabAnforderungen[Dringlichkeit],N$67,TabAnforderungen[Status],$L69)","v":1},{"$f":"COUNTIFS(TabAnforderungen[Dringlichkeit],O$67,TabAnforderungen[Status],$L69)","v":0}]
[null,"1-hoch",{"$f":"COUNTIFS(TabAnforderungen[Dringlichkeit],$B70,TabAnforderungen[Status],C$67)","v":2},{"$f":"COUNTIFS(TabAnforderungen[Dringlichkeit],$B70,TabAnforderungen[Status],D$67)","v":1},{"$f":"COUNTIFS(TabAnforderungen[Dringlichkeit],$B70,TabAnforderungen[Status],E$67)","v":1},{"$f":"COUNTIFS(TabAnforderungen[Dringlichkeit],$B70,TabAnforderungen[Status],F$67)","v":3},{"$f":"COUNTIFS(TabAnforderungen[Dringlichkeit],$B70,TabAnforderungen[Status],G$67)","v":2},{"$f":"COUNTIFS(TabAnforderungen[Dringlichkeit],$B70,TabAnforderungen[Status],H$67)","v":0},{"$f":"COUNTIFS(TabAnforderungen[Dringlichkeit],$B70,TabAnforderungen[Status],I$67)","v":1},null,null,"akzeptiert",{"$f":"COUNTIFS(TabAnforderungen[Dringlichkeit],M$67,TabAnforderungen[Status],$L70)","v":1},{"$f":"COUNTIFS(TabAnforderungen[Dringlichkeit],N$67,TabAnforderungen[Status],$L70)","v":3},{"$f":"COUNTIFS(TabAnforderungen[Dringlichkeit],O$67,TabAnforderungen[Status],$L70)","v":0}]
[{"$nulls":11},"analysiert",{"$f":"COUNTIFS(TabAnforderungen[Dringlichkeit],M$67,TabAnforderungen[Status],$L71)","v":3},{"$f":"COUNTIFS(TabAnforderungen[Dringlichkeit],N$67,TabAnforderungen[Status],$L71)","v":0},{"$f":"COUNTIFS(TabAnforderungen[Dringlichkeit],O$67,TabAnforderungen[Status],$L71)","v":1}]
[{"$nulls":11},"Lösung spezifiziert",{"$f":"COUNTIFS(TabAnforderungen[Dringlichkeit],M$67,TabAnforderungen[Status],$L72)","v":2},{"$f":"COUNTIFS(TabAnforderungen[Dringlichkeit],N$67,TabAnforderungen[Status],$L72)","v":1},{"$f":"COUNTIFS(TabAnforderungen[Dringlichkeit],O$67,TabAnforderungen[Status],$L72)","v":2}]
[{"$nulls":11},"umgesetzt",{"$f":"COUNTIFS(TabAnforderungen[Dringlichkeit],M$67,TabAnforderungen[Status],$L73)","v":0},{"$f":"COUNTIFS(TabAnforderungen[Dringlichkeit],N$67,TabAnforderungen[Status],$L73)","v":1},{"$f":"COUNTIFS(TabAnforderungen[Dringlichkeit],O$67,TabAnforderungen[Status],$L73)","v":0}]
[{"$nulls":11},"geprüft",{"$f":"COUNTIFS(TabAnforderungen[Dringlichkeit],M$67,TabAnforderungen[Status],$L74)","v":1},{"$f":"COUNTIFS(TabAnforderungen[Dringlichkeit],N$67,TabAnforderungen[Status],$L74)","v":1},{"$f":"COUNTIFS(TabAnforderungen[Dringlichkeit],O$67,TabAnforderungen[Status],$L74)","v":0}]
{"$rows_empty":21}
[null,null,"Anforderungsstatus",{"$nulls":9},"Aufwand-Kategorie"]
[null,null,"beantragt","unvollständig","akzeptiert","analysiert","Lösung spezifiziert","umgesetzt","geprüft",{"$nulls":3},"1-sehr hoch","2-hoch","3-mittel","4-tief"]
["Aufwand-Kategorie","4-tief",{"$f":"COUNTIFS(TabAnforderungen[Status],C$97,TabAnforderungen[Aufwand-Kategorie],$B98)","v":2},{"$f":"COUNTIFS(TabAnforderungen[Status],D$97,TabAnforderungen[Aufwand-Kategorie],$B98)","v":0},{"$f":"COUNTIFS(TabAnforderungen[Status],E$97,TabAnforderungen[Aufwand-Kategorie],$B98)","v":1},{"$f":"COUNTIFS(TabAnforderungen[Status],F$97,TabAnforderungen[Aufwand-Kategorie],$B98)","v":1},{"$f":"COUNTIFS(TabAnforderungen[Status],G$97,TabAnforderungen[Aufwand-Kategorie],$B98)","v":1},{"$f":"COUNTIFS(TabAnforderungen[Status],H$97,TabAnforderungen[Aufwand-Kategorie],$B98)","v":0},{"$f":"COUNTIFS(TabAnforderungen[Status],I$97,TabAnforderungen[Aufwand-Kategorie],$B98)","v":0},null,"Anforderungs-status ","beantragt",{"$f":"COUNTIFS(TabAnforderungen[Status],$L98,TabAnforderungen[Aufwand-Kategorie],M$97)","v":0},{"$f":"COUNTIFS(TabAnforderungen[Status],$L98,TabAnforderungen[Aufwand-Kategorie],N$97)","v":1},{"$f":"COUNTIFS(TabAnforderungen[Status],$L98,TabAnforderungen[Aufwand-Kategorie],O$97)","v":2},{"$f":"COUNTIFS(TabAnforderungen[Status],$L98,TabAnforderungen[Aufwand-Kategorie],P$97)","v":2}]
[null,"3-mittel",{"$f":"COUNTIFS(TabAnforderungen[Status],C$97,TabAnforderungen[Aufwand-Kategorie],$B99)","v":2},{"$f":"COUNTIFS(TabAnforderungen[Status],D$97,TabAnforderungen[Aufwand-Kategorie],$B99)","v":1},{"$f":"COUNTIFS(TabAnforderungen[Status],E$97,TabAnforderungen[Aufwand-Kategorie],$B99)","v":2},{"$f":"COUNTIFS(TabAnforderungen[Status],F$97,TabAnforderungen[Aufwand-Kategorie],$B99)","v":1},{"$f":"COUNTIFS(TabAnforderungen[Status],G$97,TabAnforderungen[Aufwand-Kategorie],$B99)","v":1},{"$f":"COUNTIFS(TabAnforderungen[Status],H$97,TabAnforderungen[Aufwand-Kategorie],$B99)","v":0},{"$f":"COUNTIFS(TabAnforderungen[Status],I$97,TabAnforderungen[Aufwand-Kategorie],$B99)","v":1},null,null,"unvollständig",{"$f":"COUNTIFS(TabAnforderungen[Status],$L99,TabAnforderungen[Aufwand-Kategorie],M$97)","v":1},{"$f":"COUNTIFS(TabAnforderungen[Status],$L99,TabAnforderungen[Aufwand-Kategorie],N$97)","v":0},{"$f":"COUNTIFS(TabAnforderungen[Status],$L99,TabAnforderungen[Aufwand-Kategorie],O$97)","v":1},{"$f":"COUNTIFS(TabAnforderungen[Status],$L99,TabAnforderungen[Aufwand-Kategorie],P$97)","v":0}]
[null,"2-hoch",{"$f":"COUNTIFS(TabAnforderungen[Status],C$97,TabAnforderungen[Aufwand-Kategorie],$B100)","v":1},{"$f":"COUNTIFS(TabAnforderungen[Status],D$97,TabAnforderungen[Aufwand-Kategorie],$B100)","v":0},{"$f":"COUNTIFS(TabAnforderungen[Status],E$97,TabAnforderungen[Aufwand-Kategorie],$B100)","v":1},{"$f":"COUNTIFS(TabAnforderungen[Status],F$97,TabAnforderungen[Aufwand-Kategorie],$B100)","v":1},{"$f":"COUNTIFS(TabAnforderungen[Status],G$97,TabAnforderungen[Aufwand-Kategorie],$B100)","v":0},{"$f":"COUNTIFS(TabAnforderungen[Status],H$97,TabAnforderungen[Aufwand-Kategorie],$B100)","v":1},{"$f":"COUNTIFS(TabAnforderungen[Status],I$97,TabAnforderungen[Aufwand-Kategorie],$B100)","v":1},null,null,"akzeptiert",{"$f":"COUNTIFS(TabAnforderungen[Status],$L100,TabAnforderungen[Aufwand-Kategorie],M$97)","v":0},{"$f":"COUNTIFS(TabAnforderungen[Status],$L100,TabAnforderungen[Aufwand-Kategorie],N$97)","v":1},{"$f":"COUNTIFS(TabAnforderungen[Status],$L100,TabAnforderungen[Aufwand-Kategorie],O$97)","v":2},{"$f":"COUNTIFS(TabAnforderungen[Status],$L100,TabAnforderungen[Aufwand-Kategorie],P$97)","v":1}]
[null,"1-sehr hoch",{"$f":"COUNTIFS(TabAnforderungen[Status],C$97,TabAnforderungen[Aufwand-Kategorie],$B101)","v":0},{"$f":"COUNTIFS(TabAnforderungen[Status],D$97,TabAnforderungen[Aufwand-Kategorie],$B101)","v":1},{"$f":"COUNTIFS(TabAnforderungen[Status],E$97,TabAnforderungen[Aufwand-Kategorie],$B101)","v":0},{"$f":"COUNTIFS(TabAnforderungen[Status],F$97,TabAnforderungen[Aufwand-Kategorie],$B101)","v":1},{"$f":"COUNTIFS(TabAnforderungen[Status],G$97,TabAnforderungen[Aufwand-Kategorie],$B101)","v":3},{"$f":"COUNTIFS(TabAnforderungen[Status],H$97,TabAnforderungen[Aufwand-Kategorie],$B101)","v":0},{"$f":"COUNTIFS(TabAnforderungen[Status],I$97,TabAnforderungen[Aufwand-Kategorie],$B101)","v":0},null,null,"analysiert",{"$f":"COUNTIFS(TabAnforderungen[Status],$L101,TabAnforderungen[Aufwand-Kategorie],M$97)","v":1},{"$f":"COUNTIFS(TabAnforderungen[Status],$L101,TabAnforderungen[Aufwand-Kategorie],N$97)","v":1},{"$f":"COUNTIFS(TabAnforderungen[Status],$L101,TabAnforderungen[Aufwand-Kategorie],O$97)","v":1},{"$f":"COUNTIFS(TabAnforderungen[Status],$L101,TabAnforderungen[Aufwand-Kategorie],P$97)","v":1}]
[{"$nulls":11},"Lösung spezifiziert",{"$f":"COUNTIFS(TabAnforderungen[Status],$L102,TabAnforderungen[Aufwand-Kategorie],M$97)","v":3},{"$f":"COUNTIFS(TabAnforderungen[Status],$L102,TabAnforderungen[Aufwand-Kategorie],N$97)","v":0},{"$f":"COUNTIFS(TabAnforderungen[Status],$L102,TabAnforderungen[Aufwand-Kategorie],O$97)","v":1},{"$f":"COUNTIFS(TabAnforderungen[Status],$L102,TabAnforderungen[Aufwand-Kategorie],P$97)","v":1}]
[{"$nulls":11},"umgesetzt",{"$f":"COUNTIFS(TabAnforderungen[Status],$L103,TabAnforderungen[Aufwand-Kategorie],M$97)","v":0},{"$f":"COUNTIFS(TabAnforderungen[Status],$L103,TabAnforderungen[Aufwand-Kategorie],N$97)","v":1},{"$f":"COUNTIFS(TabAnforderungen[Status],$L103,TabAnforderungen[Aufwand-Kategorie],O$97)","v":0},{"$f":"COUNTIFS(TabAnforderungen[Status],$L103,TabAnforderungen[Aufwand-Kategorie],P$97)","v":0}]
[{"$nulls":11},"geprüft",{"$f":"COUNTIFS(TabAnforderungen[Status],$L104,TabAnforderungen[Aufwand-Kategorie],M$97)","v":0},{"$f":"COUNTIFS(TabAnforderungen[Status],$L104,TabAnforderungen[Aufwand-Kategorie],N$97)","v":1},{"$f":"COUNTIFS(TabAnforderungen[Status],$L104,TabAnforderungen[Aufwand-Kategorie],O$97)","v":1},{"$f":"COUNTIFS(TabAnforderungen[Status],$L104,TabAnforderungen[Aufwand-Kategorie],P$97)","v":0}]
{"$rows_empty":22}
[null,null,"Anforderungsstatus",{"$nulls":9},"Priorität fachlich"]
[null,null,"beantragt","unvollständig","akzeptiert","analysiert","Lösung spezifiziert","umgesetzt","geprüft",{"$nulls":3},"1-sehr hoch","2-hoch","3-mittel","4-tief"]
["Priorität fachlich","4-tief",{"$f":"COUNTIFS(TabAnforderungen[Priorität fachl.],$B129,TabAnforderungen[Status],C$128)","v":0},{"$f":"COUNTIFS(TabAnforderungen[Priorität fachl.],$B129,TabAnforderungen[Status],D$128)","v":1},{"$f":"COUNTIFS(TabAnforderungen[Priorität fachl.],$B129,TabAnforderungen[Status],E$128)","v":1},{"$f":"COUNTIFS(TabAnforderungen[Priorität fachl.],$B129,TabAnforderungen[Status],F$128)","v":2},{"$f":"COUNTIFS(TabAnforderungen[Priorität fachl.],$B129,TabAnforderungen[Status],G$128)","v":1},{"$f":"COUNTIFS(TabAnforderungen[Priorität fachl.],$B129,TabAnforderungen[Status],H$128)","v":0},{"$f":"COUNTIFS(TabAnforderungen[Priorität fachl.],$B129,TabAnforderungen[Status],I$128)","v":0},null,"Anforderungs-status ","beantragt",{"$f":"COUNTIFS(TabAnforderungen[Priorität fachl.],M$128,TabAnforderungen[Status],$L129)","v":2},{"$f":"COUNTIFS(TabAnforderungen[Priorität fachl.],N$128,TabAnforderungen[Status],$L129)","v":1},{"$f":"COUNTIFS(TabAnforderungen[Priorität fachl.],O$128,TabAnforderungen[Status],$L129)","v":2},{"$f":"COUNTIFS(TabAnforderungen[Priorität fachl.],P$128,TabAnforderungen[Status],$L129)","v":0}]
[null,"3-mittel",{"$f":"COUNTIFS(TabAnforderungen[Priorität fachl.],$B130,TabAnforderungen[Status],C$128)","v":2},{"$f":"COUNTIFS(TabAnforderungen[Priorität fachl.],$B130,TabAnforderungen[Status],D$128)","v":0},{"$f":"COUNTIFS(TabAnforderungen[Priorität fachl.],$B130,TabAnforderungen[Status],E$128)","v":0},{"$f":"COUNTIFS(TabAnforderungen[Priorität fachl.],$B130,TabAnforderungen[Status],F$128)","v":1},{"$f":"COUNTIFS(TabAnforderungen[Priorität fachl.],$B130,TabAnforderungen[Status],G$128)","v":1},{"$f":"COUNTIFS(TabAnforderungen[Priorität fachl.],$B130,TabAnforderungen[Status],H$128)","v":1},{"$f":"COUNTIFS(TabAnforderungen[Priorität fachl.],$B130,TabAnforderungen[Status],I$128)","v":1},null,null,"unvollständig",{"$f":"COUNTIFS(TabAnforderungen[Priorität fachl.],M$128,TabAnforderungen[Status],$L130)","v":1},{"$f":"COUNTIFS(TabAnforderungen[Priorität fachl.],N$128,TabAnforderungen[Status],$L130)","v":0},{"$f":"COUNTIFS(TabAnforderungen[Priorität fachl.],O$128,TabAnforderungen[Status],$L130)","v":0},{"$f":"COUNTIFS(TabAnforderungen[Priorität fachl.],P$128,TabAnforderungen[Status],$L130)","v":1}]
[null,"2-hoch",{"$f":"COUNTIFS(TabAnforderungen[Priorität fachl.],$B131,TabAnforderungen[Status],C$128)","v":1},{"$f":"COUNTIFS(TabAnforderungen[Priorität fachl.],$B131,TabAnforderungen[Status],D$128)","v":0},{"$f":"COUNTIFS(TabAnforderungen[Priorität fachl.],$B131,TabAnforderungen[Status],E$128)","v":2},{"$f":"COUNTIFS(TabAnforderungen[Priorität fachl.],$B131,TabAnforderungen[Status],F$128)","v":0},{"$f":"COUNTIFS(TabAnforderungen[Priorität fachl.],$B131,TabAnforderungen[Status],G$128)","v":1},{"$f":"COUNTIFS(TabAnforderungen[Priorität fachl.],$B131,TabAnforderungen[Status],H$128)","v":0},{"$f":"COUNTIFS(TabAnforderungen[Priorität fachl.],$B131,TabAnforderungen[Status],I$128)","v":1},null,null,"akzeptiert",{"$f":"COUNTIFS(TabAnforderungen[Priorität fachl.],M$128,TabAnforderungen[Status],$L131)","v":1},{"$f":"COUNTIFS(TabAnforderungen[Priorität fachl.],N$128,TabAnforderungen[Status],$L131)","v":2},{"$f":"COUNTIFS(TabAnforderungen[Priorität fachl.],O$128,TabAnforderungen[Status],$L131)","v":0},{"$f":"COUNTIFS(TabAnforderungen[Priorität fachl.],P$128,TabAnforderungen[Status],$L131)","v":1}]
[null,"1-sehr hoch",{"$f":"COUNTIFS(TabAnforderungen[Priorität fachl.],$B132,TabAnforderungen[Status],C$128)","v":2},{"$f":"COUNTIFS(TabAnforderungen[Priorität fachl.],$B132,TabAnforderungen[Status],D$128)","v":1},{"$f":"COUNTIFS(TabAnforderungen[Priorität fachl.],$B132,TabAnforderungen[Status],E$128)","v":1},{"$f":"COUNTIFS(TabAnforderungen[Priorität fachl.],$B132,TabAnforderungen[Status],F$128)","v":1},{"$f":"COUNTIFS(TabAnforderungen[Priorität fachl.],$B132,TabAnforderungen[Status],G$128)","v":2},{"$f":"COUNTIFS(TabAnforderungen[Priorität fachl.],$B132,TabAnforderungen[Status],H$128)","v":0},{"$f":"COUNTIFS(TabAnforderungen[Priorität fachl.],$B132,TabAnforderungen[Status],I$128)","v":0},null,null,"analysiert",{"$f":"COUNTIFS(TabAnforderungen[Priorität fachl.],M$128,TabAnforderungen[Status],$L132)","v":1},{"$f":"COUNTIFS(TabAnforderungen[Priorität fachl.],N$128,TabAnforderungen[Status],$L132)","v":0},{"$f":"COUNTIFS(TabAnforderungen[Priorität fachl.],O$128,TabAnforderungen[Status],$L132)","v":1},{"$f":"COUNTIFS(TabAnforderungen[Priorität fachl.],P$128,TabAnforderungen[Status],$L132)","v":2}]
[{"$nulls":11},"Lösung spezifiziert",{"$f":"COUNTIFS(TabAnforderungen[Priorität fachl.],M$128,TabAnforderungen[Status],$L133)","v":2},{"$f":"COUNTIFS(TabAnforderungen[Priorität fachl.],N$128,TabAnforderungen[Status],$L133)","v":1},{"$f":"COUNTIFS(TabAnforderungen[Priorität fachl.],O$128,TabAnforderungen[Status],$L133)","v":1},{"$f":"COUNTIFS(TabAnforderungen[Priorität fachl.],P$128,TabAnforderungen[Status],$L133)","v":1}]
[{"$nulls":11},"umgesetzt",{"$f":"COUNTIFS(TabAnforderungen[Priorität fachl.],M$128,TabAnforderungen[Status],$L134)","v":0},{"$f":"COUNTIFS(TabAnforderungen[Priorität fachl.],N$128,TabAnforderungen[Status],$L134)","v":0},{"$f":"COUNTIFS(TabAnforderungen[Priorität fachl.],O$128,TabAnforderungen[Status],$L134)","v":1},{"$f":"COUNTIFS(TabAnforderungen[Priorität fachl.],P$128,TabAnforderungen[Status],$L134)","v":0}]
[{"$nulls":11},"geprüft",{"$f":"COUNTIFS(TabAnforderungen[Priorität fachl.],M$128,TabAnforderungen[Status],$L135)","v":0},{"$f":"COUNTIFS(TabAnforderungen[Priorität fachl.],N$128,TabAnforderungen[Status],$L135)","v":1},{"$f":"COUNTIFS(TabAnforderungen[Priorität fachl.],O$128,TabAnforderungen[Status],$L135)","v":1},{"$f":"COUNTIFS(TabAnforderungen[Priorität fachl.],P$128,TabAnforderungen[Status],$L135)","v":0}]
{"$rows_empty":21}
["Umsetzungsarten","NA: offen",{"$f":"COUNTIFS(TabAnforderungen[Umsetzungs-Art],$B157)","v":1},{"$nulls":7},"Anforderungsstatus ","beantragt",{"$f":"COUNTIFS(TabAnforderungen[Status],$L157)","v":5}]
[null,"SW: Softwaremässig",{"$f":"COUNTIFS(TabAnforderungen[Umsetzungs-Art],$B158)","v":1},{"$nulls":8},"unvollständig",{"$f":"COUNTIFS(TabAnforderungen[Status],$L158)","v":2}]
[null,"ORG: Organisatorisch",{"$f":"COUNTIFS(TabAnforderungen[Umsetzungs-Art],$B159)","v":1},{"$nulls":8},"akzeptiert",{"$f":"COUNTIFS(TabAnforderungen[Status],$L159)","v":4}]
[null,"T: Technisch",{"$f":"COUNTIFS(TabAnforderungen[Umsetzungs-Art],$B160)","v":2},{"$nulls":8},"analysiert",{"$f":"COUNTIFS(TabAnforderungen[Status],$L160)","v":4}]
[{"$nulls":11},"Lösung spezifiziert",{"$f":"COUNTIFS(TabAnforderungen[Status],$L161)","v":5}]
[{"$nulls":11},"umgesetzt",{"$f":"COUNTIFS(TabAnforderungen[Status],$L162)","v":1}]
[{"$nulls":11},"geprüft",{"$f":"COUNTIFS(TabAnforderungen[Status],$L163)","v":2}]
[{"$nulls":11},"abgelehnt",{"$f":"COUNTIFS(TabAnforderungen[Status],$L164)","v":2}]

{"sheet":"Ausw Dringlich_Wichtig","index":4,"n_rows":21,"n_cols":10,"rows_kept":21,"merged":[[12,4,12,9]]}
["1-hoch","1-hoch",{"$f":"COUNTIFS(TabAnforderungen[Dringlichkeit],A1,TabAnforderungen[Wichtigkeit],B1)","v":1}]
["1-hoch","2-mittel",{"$f":"COUNTIFS(TabAnforderungen[Dringlichkeit],A2,TabAnforderungen[Wichtigkeit],B2)","v":1}]
["1-hoch","3-gering",{"$f":"COUNTIFS(TabAnforderungen[Dringlichkeit],A3,TabAnforderungen[Wichtigkeit],B3)","v":0}]
["2-mittel","1-hoch",{"$f":"COUNTIFS(TabAnforderungen[Dringlichkeit],A4,TabAnforderungen[Wichtigkeit],B4)","v":0}]
["2-mittel","2-mittel",{"$f":"COUNTIFS(TabAnforderungen[Dringlichkeit],A5,TabAnforderungen[Wichtigkeit],B5)","v":0}]
["2-mittel","3-gering",{"$f":"COUNTIFS(TabAnforderungen[Dringlichkeit],A6,TabAnforderungen[Wichtigkeit],B6)","v":1}]
["3-gering","1-hoch",{"$f":"COUNTIFS(TabAnforderungen[Dringlichkeit],A7,TabAnforderungen[Wichtigkeit],B7)","v":0}]
["3-gering","2-mittel",{"$f":"COUNTIFS(TabAnforderungen[Dringlichkeit],A8,TabAnforderungen[Wichtigkeit],B8)","v":0}]
["3-gering","3-gering",{"$f":"COUNTIFS(TabAnforderungen[Dringlichkeit],A9,TabAnforderungen[Wichtigkeit],B9)","v":0}]
[]
[]
[]
[{"$nulls":4},"Auswertung Dringlichkeit / Wichtigkeit Statistik"]
[]
[]
[{"$nulls":4},"hoch",{"$f":"C3","v":0},null,{"$f":"C2","v":1},null,{"$f":"C1","v":1}]
[]
[{"$nulls":4},"mittel",{"$f":"C6","v":1},null,{"$f":"C5","v":0},null,{"$f":"C4","v":0}]
[]
[{"$nulls":4},"gering",{"$f":"C9","v":0},null,{"$f":"C8","v":0},null,{"$f":"C7","v":0}]
[{"$nulls":5},"gering",null,"mittel",null,"hoch"]

{"sheet":"Ausw StoryPoints","index":5,"n_rows":5,"n_cols":5,"rows_kept":5,"hidden":true}
["Zeilenbeschriftungen","Summe von Story Points Estimated",null,null,"Achtung: Pivot aktualisieren!"]
["(Leer)"]
[1,5]
[2,8]
["Gesamtergebnis",13]

{"sheet":"Parametrisierung","index":6,"n_rows":128,"n_cols":3,"rows_kept":128,"hidden":true}
["Kategorie"]
["Systemgrenzen/Schnittstellen"]
["Nicht Funktional"]
["Funktional"]
["Dienstleistung/Organisation"]
["Konfigruation"]
[]
[]
["Anforderungstypen"]
["GR: Geschäftsregel"]
["FA: Funktionale Anforderung"]
["NFA: Nicht funktionale Anforderung"]
["AK: Akzeptanzkriterium"]
["B: Bedürfnis"]
["T: Grobanforderung (Thema/Epic)"]
["K: Kategorie"]
[]
[]
["Umsetzungsarten"]
["NA: offen"]
["SW: Softwaremässig"]
["ORG: Organisatorisch"]
["T: Technisch"]
[]
[]
["Nutzen Kategorie"]
["1-sehr hoch"]
["2-hoch"]
["3-mittel"]
["4-tief"]
[]
[]
["Risiko"]
["1-sehr hoch"]
["2-hoch"]
["3-mittel"]
["4-tief"]
[]
[]
["Unsicherheit"]
["1-sehr hoch"]
["2-hoch"]
["3-mittel"]
["4-tief"]
[]
[]
["Standardisierung"]
["1-nicht vorhanden"]
["2-grössere Anp."]
["3-kleinere Anp."]
["4-Standard"]
[]
[]
["Auswirkung nicht Realis."]
["1-sehr hoch"]
["2-hoch"]
["3-mittel"]
["4-tief"]
[]
[]
["Komplexität"]
["1-sehr hoch"]
["2-hoch"]
["3-mittel"]
["4-tief"]
[]
[]
["Aufwand-Kategorie"]
["1-sehr hoch"]
["2-hoch"]
["3-mittel"]
["4-tief"]
[]
[]
["Priorität  fachlich"]
["1-sehr hoch"]
["2-hoch"]
["3-mittel"]
["4-tief"]
[]
[]
["Status","Status\nAnzeige","Status 0 führt zu \"grauer Anzeige\" im Katalog"]
["beantragt",1]
["unvollständig",1]
["akzeptiert",1]
["analysiert",1]
["Lösung spezifiziert",1]
["umgesetzt",1]
["geprüft",1]
["abgelehnt",0]
["doppelt/ersetzt",0]
["abgeleitet aus",1]
[]
[]
["Beschreibungs-Tiefe"]
["detailliert"]
["mittel"]
["as is"]
[]
[]
["Dringlichkeit"]
["1-hoch"]
["2-mittel"]
["3-gering"]
[]
[]
["D/W"]
[11]
[12]
[13]
[21]
[22]
[23]
[31]
[32]
[33]
[]
[]
["Ausprägung"]
[]
["Grobanforderung/Thema/Epic"]
["Kategorie"]
[]
[]
["ErfüllungLieferant"]
["erfüllt"]
["teilweise"]
["nicht erfüllt"]